{"text_format":"3","workbook":"xlsx","n_sheets":11,"sheets":["法人情報","特別養護老人ホーム","特別養護老人ホーム1","短期入所生活介護","mas","短期入所生活介護1","通所介護等","通所介護等1","認知症対応型通所介護","認知症対応型通所介護1","【参考】級地区分表"],"not_rendered":{"images":1,"macros":1,"defined_names":230,"comments":1},"read":"whole","date_system":"1900"}

{"sheet":"法人情報","index":0,"n_rows":337,"n_cols":25,"rows_kept":337,"merged":[[1,1,1,12],[2,1,2,12],[4,3,4,14],[9,1,9,3],[11,1,11,4],[11,5,11,10],[12,1,12,4],[12,5,12,10],[13,1,13,4],[13,5,13,9],[13,11,13,12],[14,1,15,4],[16,1,16,4],[16,5,16,8],[17,1,17,4],[17,5,17,10],[24,3,24,7],[25,3,25,7],[26,3,26,7],[27,3,27,7],[32,3,32,7],[33,3,33,7],[34,3,34,7],[35,3,35,7],[48,1,48,3],[75,1,76,3],[75,4,76,5],[75,6,75,13],[76,12,76,13],[77,1,77,3],[77,4,77,5],[77,12,77,13],[78,1,78,3],[78,4,78,5],[78,12,78,13],[79,1,79,3],[79,4,79,5],[79,12,79,13],[80,1,80,3],[80,4,80,5],[80,12,80,13],[81,1,81,3],[81,4,81,5],[81,12,81,13],[82,1,82,3],[82,4,82,5],[82,12,82,13],[83,1,83,3],[83,4,83,5],[83,12,83,13],[84,1,84,3],[84,4,84,5],[84,12,84,13],[85,1,85,3],[85,4,85,5],[85,12,85,13],[86,1,86,3],[86,4,86,5],[86,12,86,13],[103,2,103,13],[106,1,106,3],[121,3,121,11],[122,3,122,11],[123,3,123,11],[124,3,124,11],[125,3,125,11],[126,3,126,11],[127,3,127,11],[130,1,130,3],[147,6,147,11],[147,12,149,12],[147,13,149,13],[148,6,148,8],[148,9,148,11],[150,1,150,5],[151,1,151,5],[152,1,152,5],[153,1,153,5],[154,1,154,5],[155,1,155,5],[156,1,156,5],[157,1,157,5],[158,1,158,5],[159,1,159,2],[159,3,159,5],[160,1,160,2],[160,3,160,5],[161,1,161,2],[161,3,161,5],[166,1,166,3],[182,4,182,9],[183,4,183,9],[184,4,184,9],[185,4,185,9],[188,1,190,10],[195,2,195,12],[205,5,207,9],[219,6,219,11],[220,6,220,11],[221,6,221,11],[222,6,222,11],[223,7,224,11],[228,5,228,11],[229,5,229,11],[230,5,230,11],[231,5,231,11],[232,5,232,11],[233,5,233,11],[234,5,234,11],[235,5,235,11],[236,5,236,11],[237,5,237,6],[237,7,237,11],[243,5,245,9],[257,6,257,11],[258,6,258,11],[259,6,259,11],[260,6,260,11],[261,7,262,11],[275,5,275,6],[275,7,275,11],[288,4,288,5],[288,6,288,11],[292,1,292,3],[301,4,301,10],[319,4,319,10],[338,2,338,12]]}
[]
[null,"全国社会福祉法人経営者協議会　高齢者福祉事業経営委員会",{"$nulls":12},"Ver.1.6"]
[null,"次期介護報酬改定に向けた意識調査（個別調査）調査"]
[]
[{"$nulls":3},"● 調査対象　特別養護老人ホーム・短期入所生活介護・通所介護・地域密着型通所介護・\n　　　　　　　　　　認知症対応型通所介護を経営する会員法人"]
[{"$nulls":5},"※いずれか一つでも経営している法人が対象です"]
[{"$nulls":3},"● 回答期限　2020年11月6日（金）"]
[]
[]
[null,"基本情報"]
[]
[null," 法人名"]
[null," 担当者氏名"]
[null," 現況報告書の法人番号",{"$nulls":9},"［法人番号をWebで調べる］"]
[null," 経営する特別養護老人ホーム・\n 短期入所生活介護・通所介護\n （地域密着型含む）・認知症対\n 応型通所介護の数",{"$nulls":3},"特別養護\n老人ホーム","短期入所\n生活介護","通所介護","認知症対応型通所介護"]
[]
[null," 電話番号(※)",{"$nulls":7}," 都道府県"]
[null," E-mailアドレス(※)"]
[null,"※今後やりとりをする連絡先なので、正確に入力して下さい"]
[]
[null,"【直近の令和元年度末決算】"]
[]
[null,null,"法人全体のサービス活動収益に占める高齢者福祉事業の収益割合"]
[]
[{"$nulls":3},"　　～２５％"]
[{"$nulls":3},"２６～５０％"]
[{"$nulls":3},"５１～７５％"]
[{"$nulls":3},"７６％以上"]
[]
[]
[null,null,"高齢者福祉事業の収益に占める特別養護老人ホームの収益割合"]
[]
[{"$nulls":3},"　　～２５％"]
[{"$nulls":3},"２６～５０％"]
[{"$nulls":3},"５１～７５％"]
[{"$nulls":3},"７６％以上"]
{"$rows_empty":12}
[null,"カテゴリ①",null,null,"介護分野の文書に係る負担軽減"]
[]
[]
[null,"問１　事務負担の大きい介護分野の書類について、その文書の名前および負担と感じている理由等について"]
[null," 教えてください。"]
[null,"※負担感の大きいものから順にご記入ください。最大10個までご記入いただけます。"]
[]
[{"$nulls":7}," 【回答方法】"]
[]
[{"$nulls":7},"①「分野」の選択"]
[{"$nulls":7},"負担と感じている文書が該当する分野について、"]
[{"$nulls":7},"「指定申請関連文書（人員・設備基準に該当することを確認する文書等）」、"]
[{"$nulls":7},"「報酬請求関連文書（加算取得の要件に該当することを確認する文書等）」、"]
[{"$nulls":7},"「指導監査関連文書」、"]
[{"$nulls":7},"「その他」の４つからいずれか１つを選択してください。"]
[]
[{"$nulls":7},"②「名前」の記入"]
[{"$nulls":7},"負担と感じている文書の正式名称をご記入ください（※誤りがないよう、正確にご記入ください）。"]
[]
[{"$nulls":7},"③「理由」の選択（一部記入あり）"]
[{"$nulls":7},"負担と感じている理由について、①押印に関して負担が大きい、②原本証明に関して負担が大きい、"]
[{"$nulls":7},"③提出方法に関して負担が大きい、④記載しなければならない内容が多い、"]
[{"$nulls":7},"⑤すでに提出済であり、あらためて作成・提出することに関して負担が大きい、"]
[{"$nulls":7},"⑥その他から選択してください（複数選択可）。"]
[{"$nulls":7},"⑥その他を選択された場合、一番右側に負担と感じている内容をご記入ください。"]
[]
[]
[null,"分野",null,null,"文書の名前",null,"その理由"]
[{"$nulls":6},"①\n押印に関する負担が大きい","②\n原本証明に関する負担が大きい","③\n提出方法に関する負担が大きい","④\n記載しなければならない内容が多い","⑤\nすでに提出済であり、あらためて作成・提出することに関して負担が大きい","⑥\nその他","その他\n自由記述",{"$nulls":6},"①","②","③","④","⑤","⑥"]
[1]
[2]
[3]
[4]
[5]
[6]
[7]
[8]
[9]
[10]
[]
[]
[{"$nulls":5},"【「その理由」の選択肢の具体例】"]
[]
[{"$nulls":5},"①押印に関して負担が大きい ： 押印箇所が多い、電子押印が認められない、押印以外の形での本人確認が認められないため　等"]
[{"$nulls":5},"②原本証明に関して負担が大きい ： 原本証明が求められるため　等"]
[{"$nulls":5},"③提出方法に関して負担が大きい ： 持参・郵送等が求められるため　等"]
[]
[]
[]
[]
[]
[]
[null,"問２　介護分野の文書負担軽減に関して、ご意見をご記入ください（自由記述）。"]
[]
[]
[]
[]
[]
[null,"カテゴリ②",null,null,"介護職員処遇改善加算・介護職員等特定処遇改善加算"]
[]
[]
[null,"全国経営協は、法人の自主性・自律性を高め、より公平かつ効果的な処遇改善を図る観点から、"]
[null,"介護職員処遇改善加算・介護職員等特定処遇改善加算について、それぞれの対象職種範囲や"]
[null,"配分方法等については、一定の基準を満たす場合の法人裁量を拡大すべきと考えています。"]
[null,"このスタンスについて、貴法人としての考え方を教えてください。"]
{"$rows_empty":8}
[{"$nulls":3},"とても賛成"]
[{"$nulls":3},"やや賛成"]
[{"$nulls":3},"やや反対"]
[{"$nulls":3},"とても反対"]
[{"$nulls":3},"どちらでもない・わからない"]
[{"$nulls":3},"その他"]
[]
[]
[]
[null,"カテゴリ③",null,null,"ＩＣＴ、ロボット等の活用"]
[]
[null,"平成30年4月1日～令和2年3月31日の間 に貴法人が経営する特別養護老人ホームにおいて導入した"]
[null,"ICT、ロボット等の契約方法ならびに導入時の補助金の活用状況等について教えてください。"]
[]
[]
[null,"注1　当該期間中にICT、ロボット等をひとつも導入されていない場合、回答不要"]
[null,"注2　当該期間中にICT、ロボット等をひとつでも導入している場合、契約方法、補助金・助成金の活用状況について回答。"]
[null,"導入していない機器等については一番右の「導入していない」を選択"]
[null,"注3　【対象期間内に同じカテゴリに属する機器等を複数台導入している場合（ex.移動支援に該当する機器を２台導入した場合など）】"]
[null,"・・・直近で導入した機器等の状況に基づき記入してください。"]
[]
[]
[]
[]
[]
[]
[{"$nulls":6},"（導入している場合）",{"$nulls":5},"導入して\nいない","今後の導入\n予定と希望\n\n※導入済で\n今後追加で\n導入予定の\nものを含む"]
[{"$nulls":6},"契約方法",null,null,"補助金・助成金"]
[{"$nulls":6},"購入","リース\nまたは\nレンタル","その他","国・都道府県・市町村による補助金・助成金を活用し導入\n　※注","その他補助金・助成金（研究協力等）を活用し導入","活用せず\n導入"]
[null," 移乗支援（装着型）"]
[null," 移乗支援（非装着型）"]
[null," 移動支援"]
[null," 排泄支援（直接的に排泄物を処理するロボット等）"]
[null," 排泄支援\n （排泄を予測するなど間接的な支援を行う機器等）"]
[null," 見守り"]
[null," コミュニケーション\n （利用者とのコミュニケーションを支援する機器等）"]
[null," コミュニケーション\n （インカム等職員間のコミュニケーションを支援する\n   機器等）"]
[null," 入浴支援"]
[null," その他1"]
[null," その他2"]
[null," その他3"]
[]
[null,"注：（介護ロボット導入支援事業、ICT導入支援事業など、国・都道府県・市区町村によるもの）"]
[]
[]
[null,"カテゴリ④",null,null,"2040年を見据えた今後の事業展開のあり方"]
[]
[]
[null,"社会福祉法人の経営基盤の強化ならびに円滑に連携・協働化しやすい環境整備を進める観点から、"]
[null,"現在、社会保障審議会福祉部会等において、新たな選択肢である「社会福祉連携推進法人」や"]
[null,"合併・事業譲渡等のあり方について議論されています。"]
[]
[null,"一方、2040年問題への対応が喫緊の課題となるなか、本会は、社会福祉法人が主体性を持ち"]
[null,"自律的な経営を実践することが重要であると考えており、この設問で回答いただいたみなさまの声を"]
[null,"踏まえ、現状を分析し、事業展開を行ううえで必要な支援や情報提供等について検討してまいります。"]
[]
[]
[null,"※回答した法人・施設、個人等が特定されない形で統計的に処理します。"]
[]
[null,"１．これまでの法人合併、事業譲渡の経験について、教えてください。"]
[]
[{"$nulls":4},"これまでに法人合併の経験がある"]
[{"$nulls":4},"これまでに他法人から事業を譲受した経験がある"]
[{"$nulls":4},"これまでに他法人に事業を譲渡した経験がある"]
[{"$nulls":4},"法人合併・事業譲渡・譲受の経験はない"]
[]
[]
[null,"現在経営している高齢者福祉事業の今後の見通しと、今後の法人経営の展望について"]
[]
[]
[]
[]
[null,"２．現状の高齢者福祉事業の経営環境について、どのように認識されているか、教えてください"]
[null,null,"（所在する地域の人口、高齢者福祉事業のニーズ、後継者（経営者）の育成、人材採用・育成・定着、競合他社の状況など）。"]
{"$rows_empty":7}
[null,"３．現在経営している高齢者福祉事業の今後の見通し"]
[null,"※それぞれの期間についてご回答下さい。","《１～５年後》"]
[]
[{"$nulls":5},"　　　堅調・現状維持　　　　　低調　　　　　わからない"]
[]
[]
[]
[{"$nulls":7},"※低調を選択した場合、低調と考える理由も下記より選択してください"]
{"$rows_empty":8}
[{"$nulls":6},"【低調】を回答の場合"]
[{"$nulls":6},"高齢者福祉事業のニーズが減少するため（高齢者人口の減少等）"]
[{"$nulls":6},"現場の実務を担う介護職員等の人材確保が難しいため"]
[{"$nulls":6},"後継者（経営層）の育成が難しいため"]
[{"$nulls":6},"競合他社が増加することが見込まれるため"]
[{"$nulls":6},"その他"]
[]
[]
[]
[{"$nulls":5},"現時点で考えている法人経営の展望"]
[{"$nulls":5},"現在展開している高齢者福祉事業を拡充予定（増床、医療的なニーズへの対応力の強化等"]
[{"$nulls":5},"新たな高齢者福祉事業を展開予定（現在事業を展開している地域）"]
[{"$nulls":5},"新たな高齢者福祉事業を展開予定（現在事業を展開していない地域）"]
[{"$nulls":5},"新たな高齢者福祉事業以外の事業（障がい福祉、保育等）を展開予定（現在事業を展開している地域）"]
[{"$nulls":5},"新たな高齢者福祉事業以外の事業（障がい福祉、保育等）を展開予定（現在事業を展開していない地域）"]
[{"$nulls":5},"他法人との連携を強化し事業の拡充・新事業を創出等について模索する予定"]
[{"$nulls":5},"現状維持"]
[{"$nulls":5},"現在展開している高齢者福祉事業を縮小予定"]
[{"$nulls":5},"未定・わからない"]
[{"$nulls":5},"その他"]
[]
[]
[null,"３．現在経営している高齢者福祉事業の今後の見通し"]
[null,"※それぞれの期間についてご回答下さい。","《６～１０年後》"]
[]
[{"$nulls":5},"　　　堅調・現状維持　　　　　低調　　　　　わからない"]
[]
[]
[{"$nulls":7},"※低調を選択した場合、低調と考える理由も下記より選択してください"]
{"$rows_empty":9}
[{"$nulls":5},"【低調】を回答の場合"]
[{"$nulls":6},"高齢者福祉事業のニーズが減少するため（高齢者人口の減少等）"]
[{"$nulls":6},"現場の実務を担う介護職員等の人材確保が難しいため"]
[{"$nulls":6},"後継者（経営層）の育成が難しいため"]
[{"$nulls":6},"競合他社が増加することが見込まれるため"]
[{"$nulls":6},"その他"]
[]
[]
[]
[{"$nulls":5},"現時点で考えている法人経営の展望"]
[{"$nulls":5},"現在展開している高齢者福祉事業を拡充予定（増床、医療的なニーズへの対応力の強化等"]
[{"$nulls":5},"新たな高齢者福祉事業を展開予定（現在事業を展開している地域）"]
[{"$nulls":5},"新たな高齢者福祉事業を展開予定（現在事業を展開していない地域）"]
[{"$nulls":5},"新たな高齢者福祉事業以外の事業（障がい福祉、保育等）を展開予定（現在事業を展開している地域）"]
[{"$nulls":5},"新たな高齢者福祉事業以外の事業（障がい福祉、保育等）を展開予定（現在事業を展開していない地域）"]
[{"$nulls":5},"他法人との連携を強化し事業の拡充・新事業を創出等について模索する予定"]
[{"$nulls":5},"現状維持"]
[{"$nulls":5},"現在展開している高齢者福祉事業を縮小予定"]
[{"$nulls":5},"未定・わからない"]
[{"$nulls":5},"その他"]
[]
[]
[]
[]
[]
[null,"４．自法人の中長期的な見通しとして、法人合併、事業譲渡に関して、現在、経営者として考えていることがあれば、"]
[null," 教えてください"]
[]
[{"$nulls":4},"理念、戦略等に関する考えが合う法人があれば、他法人から事業譲受したいと考えている"]
[{"$nulls":4},"理念、戦略等に関する考えが合う法人があれば、他法人に事業譲渡したいと考えている"]
[{"$nulls":4},"理念、戦略等に関する考えが合う法人があれば、社会福祉連携推進法人制度を活用したいと考えている"]
[{"$nulls":4},"社会福祉連携推進法人制度を活用したいと考えている"]
[{"$nulls":4},"その他"]
[]
[]
[]
[null,"カテゴリ⑤",null,null,"新型コロナウイルス感染症"]
[]
[]
[null,null,"新型コロナウイルス感染症の感染拡大にともなう特例措置に関して、自法人が経営する施設・事業所における"]
[null,null,"適用状況等について教えてください。"]
[null,null,"各種加算の算定要件※のひとつである「定期的な会議等」の電話・メール・テレビ会議等を活用した開催について"]
[]
[null,null,"※訪問介護の特定事業所加算、サービス提供体制強化加算、居宅介護支援の特定事業所加算、"]
[null,null,"訪問リハ及び通所リハのリハビリテーションマネジメント加算など"]
[null,null,"参考：",null,"https://www.mhlw.go.jp/stf/seisakunitsuite/bunya/0000045312/matome.html"]
[]
[]
[{"$nulls":3},"適用したことがある（適用している）"]
[{"$nulls":3},"適用経験なし"]
[]
[]
[null,null,"恒久化（新型コロナウイルスの拡大にともなう一時的な措置を恒常的なものにする）についてどのように考えますか？"]
[]
[{"$nulls":3},"恒久化すべき"]
[{"$nulls":3},"どちらかといえば恒久化すべき"]
[{"$nulls":3},"どちらかといえば恒久化すべきではない"]
[{"$nulls":3},"恒久化すべきでない"]
[{"$nulls":3},"わからない"]
[]
[]
[]
[null,null,"電話・メール・テレビ会議等を活用したサービス担当者会議の開催について"]
[{"$nulls":3},"参考：","https://www.mhlw.go.jp/stf/seisakunitsuite/bunya/0000045312/matome.html"]
[]
[]
[{"$nulls":3},"適用したことがある（適用している）"]
[{"$nulls":3},"適用経験なし"]
[]
[null,null,"恒久化（新型コロナウイルスの拡大にともなう一時的な措置を恒常的なものにする）についてどのように考えますか？"]
[]
[{"$nulls":4},"恒久化すべき"]
[{"$nulls":4},"どちらかといえば恒久化すべき"]
[{"$nulls":4},"どちらかといえば恒久化すべきではない"]
[{"$nulls":4},"恒久化すべきでない"]
[{"$nulls":4},"わからない"]
[]
[]
[]
[null,null,"新型コロナウイルス感染症の感染拡大にともなって生じている課題に関して、課題解決のために次期介護報酬改定において"]
[null,null,"見直すべきと考えている事項があれば、教えてください（自由記述）。"]

{"sheet":"特別養護老人ホーム","index":1,"n_rows":154,"n_cols":20,"rows_kept":154,"hidden":true,"merged":[[0,0,0,15],[1,0,1,15],[5,2,5,7],[11,3,11,13],[13,5,13,7],[15,1,15,4],[16,1,17,4],[18,1,18,4],[19,1,19,4],[20,1,20,4],[35,3,35,4],[35,5,35,6],[35,7,35,8],[36,7,36,8],[37,7,37,8],[38,7,38,8],[47,2,47,12],[48,2,48,12],[49,2,49,12],[50,2,50,12],[51,2,51,12],[52,2,52,12],[53,2,53,12],[54,2,54,12],[55,2,55,12],[56,2,56,3],[56,4,56,12],[57,2,57,12],[64,2,64,12],[65,2,65,12],[66,2,66,12],[67,2,67,12],[68,2,68,12],[69,2,69,12],[70,2,70,12],[71,2,71,12],[72,2,72,12],[73,2,73,3],[73,4,73,12],[74,2,74,12],[80,2,80,12],[81,2,81,12],[82,2,82,12],[83,2,83,12],[84,2,84,12],[85,2,85,12],[86,2,86,12],[87,2,87,12],[88,2,88,12],[89,2,89,3],[89,4,89,12],[90,2,90,12],[112,2,112,7],[113,2,113,7],[114,2,114,7],[115,2,115,7],[116,2,116,7],[122,3,122,4],[122,5,122,6],[122,7,122,8],[128,3,128,4],[128,5,128,6],[128,7,128,8],[137,3,137,4],[137,5,137,6],[137,7,137,8],[143,3,143,4],[143,5,143,6],[143,7,143,8],[155,1,155,14]]}
[]
["【特別養護老人ホームシート】"]
[]
[null,"《基本情報》"]
[]
[null,"施設名"]
[null,"施設型","従来型","個室ユニット型",null,null,"その他"]
[]
[null,null,"従来型：","介護報酬において「従来型個室」および「多床室」の適用を受けている施設"]
[null,null,"個室ユニット型：","介護報酬において「ユニット型個室」の適用を受けている施設"]
[{"$nulls":3},"↓↓　※以降の住所を記入　↓↓"]
[null,"所在地"]
[]
[null,"級地区分",null,"▼",null,"級地区分表参照"]
[]
[null,"令和元年度の会計の区分状況",{"$nulls":3},"単独会計",{"$nulls":3},"一体会計"]
[null,"併設等事業　　※介護予防含む",{"$nulls":3},"短期入所（空床型）",{"$nulls":3},"短期入所（併設型）",{"$nulls":9},{"$f":"COUNTIF($T$18:$T$21,TRUE)","v":0}]
[{"$nulls":5},"通所介護",{"$nulls":3},"その他"]
[null,"令和元年度末時点の特養の利用定員",{"$nulls":4},"名"]
[null,"令和元年度末時点の特養の在所者数",{"$nulls":4},"名"]
[null,"利用率",{"$nulls":3},{"$f":"IFERROR(F20/F19*100,0)","v":{"v":0,"d":"0.0"}},"％"]
[]
[]
[]
[null,"《サービスの経営状態と新型コロナウイルス感染症が与える影響について》"]
[]
[null,"①直近の令和元年度末決算のサービス活動増減差額の状況について教えてください。"]
[]
[null,null,"令和元年度","　　黒字",null,"赤字"]
[]
[null,"・令和２年４月～６月、令和元年４月～６月のそれぞれの月ごとの「サービス活動増減差額」を教えてください。"]
[null,null,"※マイナスの場合、「- ○,○○○」 と記入してください。"]
[null,null,"※単独会計の場合、特養（短期入所(空床型)含む）のみの金額を記入してください。"]
[null,null,"※一体会計の場合、併設等事業分も含めて記入してください。"]
[]
[{"$nulls":3},"令和２年",null,"令和元年",null,"前年差額"]
[null,null," ４月",null,"円",null,"円",{"$f":"+D37-F37","v":{"v":0,"d":"0 "}}]
[null,null," ５月",null,"円",null,"円",{"$f":"+D38-F38","v":{"v":0,"d":"0 "}}]
[null,null," ６月",null,"円",null,"円",{"v":0,"d":"0 "}]
[]
[]
[]
[]
[]
[null,null,"【令和２年４月のサービス活動増減差額が前年同月比で「減少」している場合】"]
[null,null,"その変化の主な要因は、新型コロナウイルス感染症によるものですか？"]
[]
[null,null,"はい"]
[null,null,"（主な理由を次から選択 最大３つ）",{"$nulls":16},{"$f":"COUNTIF(T50:T57,TRUE)","v":0}]
[null,null," 新規入所数が減少したため"]
[null,null," （希望者の見学等を行うことができず入居につなげられない、新規入居の自粛など）"]
[null,null," 本体施設の利用者への感染を予防する観点から短期入所（空床型・介護予防含む）の\n　営業を縮小または停止したため"]
[null,null," 人件費または採用に要する費用が増加したため"]
[null,null," （残業代増、業務量増加にともなう派遣職員の配置等に係る支出増、コロナを理由とした"]
[null,null,"   離職にともなう採用活動を実施に係る費用増など）"]
[null,null," 衛生用品・防護用品の確保および感染予防のための設備費用等にともなう支出増"]
[null,null," その他"]
[null,null,"いいえ"]
[]
[]
[]
[null,null,"【令和２年５月のサービス活動増減差額が前年同月比で「減少」している場合】"]
[null,null,"その変化の主な要因は、新型コロナウイルス感染症によるものですか？"]
[]
[null,null,"はい"]
[null,null,"（主な理由を次から選択 最大３つ）",{"$nulls":16},{"$f":"COUNTIF(T67:T74,TRUE)","v":0}]
[null,null," 新規入所数が減少したため"]
[null,null," （希望者の見学等を行うことができず入居につなげられない、新規入居の自粛など）"]
[null,null," 本体施設の利用者への感染を予防する観点から短期入所（空床型・介護予防含む）の\n　営業を縮小または停止したため"]
[null,null," 人件費または採用に要する費用が増加したため"]
[null,null," （残業代増、業務量増加にともなう派遣職員の配置等に係る支出増、コロナを理由とした"]
[null,null,"   離職にともなう採用活動を実施に係る費用増など）"]
[null,null," 衛生用品・防護用品の確保および感染予防のための設備費用等にともなう支出増"]
[null,null," その他"]
[null,null,"いいえ"]
[]
[]
[null,null,"【令和２年６月のサービス活動増減差額が前年同月比で「減少」している場合】"]
[null,null,"その変化の主な要因は、新型コロナウイルス感染症によるものですか？"]
[]
[null,null,"はい",{"$nulls":16},0]
[null,null,"（主な理由を次から選択 最大３つ）",{"$nulls":16},{"$f":"COUNTIF(T83:T90,TRUE)","v":0}]
[null,null," 新規入所数が減少したため"]
[null,null," （希望者の見学等を行うことができず入居につなげられない、新規入居の自粛など）"]
[null,null," 本体施設の利用者への感染を予防する観点から短期入所（空床型・介護予防含む）の\n　営業を縮小または停止したため"]
[null,null," 人件費または採用に要する費用が増加したため"]
[null,null," （残業代増、業務量増加にともなう派遣職員の配置等に係る支出増、コロナを理由とした"]
[null,null,"   離職にともなう採用活動を実施に係る費用増など）"]
[null,null," 衛生用品・防護用品の確保および感染予防のための設備費用等にともなう支出増"]
[null,null," その他"]
[null,null,"いいえ"]
{"$rows_empty":16}
[null,"②利用率の状況について教えてください。"]
[]
[]
[null,"・令和元年度は、平成30年度に比べ"]
[]
[null,null,"　大きく増加"]
[null,null,"　やや増加"]
[null,null,"　変わらない"]
[null,null,"　やや減少"]
[null,null,"　大きく減少"]
[]
[]
[null,"・令和２年４月～６月、令和元年４月～６月のそれぞれの月ごとの「利用率」を教えてください。"]
[]
[null,null,"【令和元年度　特養の状況】"]
[{"$nulls":3},"延べ利用者数",null,"定員",null,"営業日数",null,"利用率"]
[null,null," ４月",null,"人",null,"人",30,"日",{"$f":"IFERROR(D124/(F124*H124),0)","v":{"v":0,"d":"0.0%"}}]
[null,null," ５月",null,"人",null,"人",31,"日",{"$f":"IFERROR(D125/(F125*H125),0)","v":{"v":0,"d":"0.0%"}}]
[null,null," ６月",null,"人",null,"人",30,"日",{"$f":"IFERROR(D126/(F126*H126),0)","v":{"v":0,"d":"0.0%"}}]
[]
[null,null,"【令和２年度　特養の状況】"]
[{"$nulls":3},"延べ利用者数",null,"定員",null,"営業日数",null,"利用率",null,"前年同月比"]
[null,null," ４月",null,"人",null,"人",30,"日",{"$f":"IFERROR(D130/(F130*H130),0)","v":{"v":0,"d":"0.0%"}},null,{"$f":"(J130-J124)*100","v":{"v":0,"d":"0.0"}}]
[null,null," ５月",null,"人",null,"人",31,"日",{"$f":"IFERROR(D131/(F131*H131),0)","v":{"v":0,"d":"0.0%"}},null,{"$f":"(J131-J125)*100","v":{"v":0,"d":"0.0"}}]
[null,null," ６月",null,"人",null,"人",30,"日",{"$f":"IFERROR(D132/(F132*H132),0)","v":{"v":0,"d":"0.0%"}},null,{"v":0,"d":"0.0"}]
[]
[]
[]
[]
[null,null,"【令和元年度　短期入所（空床型）の状況】"]
[{"$nulls":3},"延べ利用者数",null,"定員",null,"営業日数",null,"利用率"]
[null,null," ４月",null,"人",null,"人",30,"日",{"$f":"IFERROR(D139/(F139*H139),0)","v":{"v":0,"d":"0.0%"}}]
[null,null," ５月",null,"人",null,"人",31,"日",{"$f":"IFERROR(D140/(F140*H140),0)","v":{"v":0,"d":"0.0%"}}]
[null,null," ６月",null,"人",null,"人",30,"日",{"$f":"IFERROR(D141/(F141*H141),0)","v":{"v":0,"d":"0.0%"}}]
[]
[null,null,"【令和２年度　短期入所（空床型）の状況】"]
[{"$nulls":3},"延べ利用者数",null,"定員",null,"営業日数",null,"利用率",null,"前年同月比"]
[null,null," ４月",null,"人",null,"人",30,"日",{"$f":"IFERROR(D145/(F145*H145),0)","v":{"v":0,"d":"0.0%"}},null,{"$f":"(J145-J139)*100","v":{"v":0,"d":"0.0"}}]
[null,null," ５月",null,"人",null,"人",31,"日",{"$f":"IFERROR(D146/(F146*H146),0)","v":{"v":0,"d":"0.0%"}},null,{"$f":"(J146-J140)*100","v":{"v":0,"d":"0.0"}}]
[null,null," ６月",null,"人",null,"人",30,"日",{"$f":"IFERROR(D147/(F147*H147),0)","v":{"v":0,"d":"0.0%"}},null,{"v":0,"d":"0.0"}]
[]
[{"$nulls":3},"※介護予防含む"]
[{"$nulls":3},"※短期入所（空床型）を実施していない場合、記入不要"]
[]
[]
[]
[null,"次期介護報酬改定に向けて、特別養護老人ホームに関して改善すべきと考えられる事項等ございましたら、ご記入ください。"]

{"sheet":"特別養護老人ホーム1","index":2,"n_rows":154,"n_cols":20,"rows_kept":154,"merged":[[0,0,0,15],[1,0,1,15],[5,2,5,7],[11,3,11,13],[13,5,13,7],[15,1,15,4],[16,1,17,4],[18,1,18,4],[19,1,19,4],[20,1,20,4],[35,3,35,4],[35,5,35,6],[35,7,35,8],[36,7,36,8],[37,7,37,8],[38,7,38,8],[47,2,47,12],[48,2,48,12],[49,2,49,12],[50,2,50,12],[51,2,51,12],[52,2,52,12],[53,2,53,12],[54,2,54,12],[55,2,55,12],[56,2,56,3],[56,4,56,12],[57,2,57,12],[64,2,64,12],[65,2,65,12],[66,2,66,12],[67,2,67,12],[68,2,68,12],[69,2,69,12],[70,2,70,12],[71,2,71,12],[72,2,72,12],[73,2,73,3],[73,4,73,12],[74,2,74,12],[80,2,80,12],[81,2,81,12],[82,2,82,12],[83,2,83,12],[84,2,84,12],[85,2,85,12],[86,2,86,12],[87,2,87,12],[88,2,88,12],[89,2,89,3],[89,4,89,12],[90,2,90,12],[112,2,112,7],[113,2,113,7],[114,2,114,7],[115,2,115,7],[116,2,116,7],[122,3,122,4],[122,5,122,6],[122,7,122,8],[128,3,128,4],[128,5,128,6],[128,7,128,8],[137,3,137,4],[137,5,137,6],[137,7,137,8],[143,3,143,4],[143,5,143,6],[143,7,143,8],[155,1,155,14]]}
[]
["【特別養護老人ホームシート】"]
[]
[null,"《基本情報》"]
[]
[null,"施設名"]
[null,"施設型","従来型","個室ユニット型",null,null,"その他"]
[]
[null,null,"従来型：","介護報酬において「従来型個室」および「多床室」の適用を受けている施設"]
[null,null,"個室ユニット型：","介護報酬において「ユニット型個室」の適用を受けている施設"]
[{"$nulls":3},"↓↓　※以降の住所を記入　↓↓"]
[null,"所在地"]
[]
[null,"級地区分",null,"▼",null,"級地区分表参照"]
[]
[null,"令和元年度の会計の区分状況",{"$nulls":3},"単独会計",{"$nulls":3},"一体会計"]
[null,"併設等事業　　※介護予防含む",{"$nulls":3},"短期入所（空床型）",{"$nulls":3},"短期入所（併設型）",{"$nulls":9},{"$f":"COUNTIF($T$18:$T$21,TRUE)","v":0}]
[{"$nulls":5},"通所介護",{"$nulls":3},"その他"]
[null,"令和元年度末時点の特養の利用定員",{"$nulls":4},"名"]
[null,"令和元年度末時点の特養の在所者数",{"$nulls":4},"名"]
[null,"利用率",{"$nulls":3},{"$f":"IFERROR(F20/F19*100,0)","v":{"v":0,"d":"0.0"}},"％"]
[]
[]
[]
[null,"《サービスの経営状態と新型コロナウイルス感染症が与える影響について》"]
[]
[null,"①直近の令和元年度末決算のサービス活動増減差額の状況について教えてください。"]
[]
[null,null,"令和元年度","　　黒字",null,"赤字"]
[]
[null,"・令和２年４月～６月、令和元年４月～６月のそれぞれの月ごとの「サービス活動増減差額」を教えてください。"]
[null,null,"※マイナスの場合、「- ○,○○○」 と記入してください。"]
[null,null,"※単独会計の場合、特養（短期入所(空床型)含む）のみの金額を記入してください。"]
[null,null,"※一体会計の場合、併設等事業分も含めて記入してください。"]
[]
[{"$nulls":3},"令和２年",null,"令和元年",null,"前年差額"]
[null,null," ４月",null,"円",null,"円",{"$f":"+D37-F37","v":{"v":0,"d":"0 "}}]
[null,null," ５月",null,"円",null,"円",{"$f":"+D38-F38","v":{"v":0,"d":"0 "}}]
[null,null," ６月",null,"円",null,"円",{"v":0,"d":"0 "}]
[]
[]
[]
[]
[]
[null,null,"【令和２年４月のサービス活動増減差額が前年同月比で「減少」している場合】"]
[null,null,"その変化の主な要因は、新型コロナウイルス感染症によるものですか？"]
[]
[null,null,"はい"]
[null,null,"（主な理由を次から選択 最大３つ）",{"$nulls":16},{"$f":"COUNTIF(T50:T57,TRUE)","v":0}]
[null,null," 新規入所数が減少したため"]
[null,null," （希望者の見学等を行うことができず入居につなげられない、新規入居の自粛など）"]
[null,null," 本体施設の利用者への感染を予防する観点から短期入所（空床型・介護予防含む）の\n　営業を縮小または停止したため"]
[null,null," 人件費または採用に要する費用が増加したため"]
[null,null," （残業代増、業務量増加にともなう派遣職員の配置等に係る支出増、コロナを理由とした"]
[null,null,"   離職にともなう採用活動を実施に係る費用増など）"]
[null,null," 衛生用品・防護用品の確保および感染予防のための設備費用等にともなう支出増"]
[null,null," その他"]
[null,null,"いいえ"]
[]
[]
[]
[null,null,"【令和２年５月のサービス活動増減差額が前年同月比で「減少」している場合】"]
[null,null,"その変化の主な要因は、新型コロナウイルス感染症によるものですか？"]
[]
[null,null,"はい"]
[null,null,"（主な理由を次から選択 最大３つ）",{"$nulls":16},{"$f":"COUNTIF(T67:T74,TRUE)","v":0}]
[null,null," 新規入所数が減少したため"]
[null,null," （希望者の見学等を行うことができず入居につなげられない、新規入居の自粛など）"]
[null,null," 本体施設の利用者への感染を予防する観点から短期入所（空床型・介護予防含む）の\n　営業を縮小または停止したため"]
[null,null," 人件費または採用に要する費用が増加したため"]
[null,null," （残業代増、業務量増加にともなう派遣職員の配置等に係る支出増、コロナを理由とした"]
[null,null,"   離職にともなう採用活動を実施に係る費用増など）"]
[null,null," 衛生用品・防護用品の確保および感染予防のための設備費用等にともなう支出増"]
[null,null," その他"]
[null,null,"いいえ"]
[]
[]
[null,null,"【令和２年６月のサービス活動増減差額が前年同月比で「減少」している場合】"]
[null,null,"その変化の主な要因は、新型コロナウイルス感染症によるものですか？"]
[]
[null,null,"はい",{"$nulls":16},0]
[null,null,"（主な理由を次から選択 最大３つ）",{"$nulls":16},{"$f":"COUNTIF(T83:T90,TRUE)","v":0}]
[null,null," 新規入所数が減少したため"]
[null,null," （希望者の見学等を行うことができず入居につなげられない、新規入居の自粛など）"]
[null,null," 本体施設の利用者への感染を予防する観点から短期入所（空床型・介護予防含む）の\n　営業を縮小または停止したため"]
[null,null," 人件費または採用に要する費用が増加したため"]
[null,null," （残業代増、業務量増加にともなう派遣職員の配置等に係る支出増、コロナを理由とした"]
[null,null,"   離職にともなう採用活動を実施に係る費用増など）"]
[null,null," 衛生用品・防護用品の確保および感染予防のための設備費用等にともなう支出増"]
[null,null," その他"]
[null,null,"いいえ"]
{"$rows_empty":16}
[null,"②利用率の状況について教えてください。"]
[]
[]
[null,"・令和元年度は、平成30年度に比べ"]
[]
[null,null,"　大きく増加"]
[null,null,"　やや増加"]
[null,null,"　変わらない"]
[null,null,"　やや減少"]
[null,null,"　大きく減少"]
[]
[]
[null,"・令和２年４月～６月、令和元年４月～６月のそれぞれの月ごとの「利用率」を教えてください。"]
[]
[null,null,"【令和元年度　特養の状況】"]
[{"$nulls":3},"延べ利用者数",null,"定員",null,"営業日数",null,"利用率"]
[null,null," ４月",null,"人",null,"人",30,"日",{"$f":"IFERROR(D124/(F124*H124),0)","v":{"v":0,"d":"0.0%"}}]
[null,null," ５月",null,"人",null,"人",31,"日",{"$f":"IFERROR(D125/(F125*H125),0)","v":{"v":0,"d":"0.0%"}}]
[null,null," ６月",null,"人",null,"人",30,"日",{"$f":"IFERROR(D126/(F126*H126),0)","v":{"v":0,"d":"0.0%"}}]
[]
[null,null,"【令和２年度　特養の状況】"]
[{"$nulls":3},"延べ利用者数",null,"定員",null,"営業日数",null,"利用率",null,"前年同月比"]
[null,null," ４月",null,"人",null,"人",30,"日",{"$f":"IFERROR(D130/(F130*H130),0)","v":{"v":0,"d":"0.0%"}},null,{"$f":"(J130-J124)*100","v":{"v":0,"d":"0.0"}}]
[null,null," ５月",null,"人",null,"人",31,"日",{"$f":"IFERROR(D131/(F131*H131),0)","v":{"v":0,"d":"0.0%"}},null,{"$f":"(J131-J125)*100","v":{"v":0,"d":"0.0"}}]
[null,null," ６月",null,"人",null,"人",30,"日",{"$f":"IFERROR(D132/(F132*H132),0)","v":{"v":0,"d":"0.0%"}},null,{"v":0,"d":"0.0"}]
[]
[]
[]
[]
[null,null,"【令和元年度　短期入所（空床型）の状況】"]
[{"$nulls":3},"延べ利用者数",null,"定員",null,"営業日数",null,"利用率"]
[null,null," ４月",null,"人",null,"人",30,"日",{"$f":"IFERROR(D139/(F139*H139),0)","v":{"v":0,"d":"0.0%"}}]
[null,null," ５月",null,"人",null,"人",31,"日",{"$f":"IFERROR(D140/(F140*H140),0)","v":{"v":0,"d":"0.0%"}}]
[null,null," ６月",null,"人",null,"人",30,"日",{"$f":"IFERROR(D141/(F141*H141),0)","v":{"v":0,"d":"0.0%"}}]
[]
[null,null,"【令和２年度　短期入所（空床型）の状況】"]
[{"$nulls":3},"延べ利用者数",null,"定員",null,"営業日数",null,"利用率",null,"前年同月比"]
[null,null," ４月",null,"人",null,"人",30,"日",{"$f":"IFERROR(D145/(F145*H145),0)","v":{"v":0,"d":"0.0%"}},null,{"$f":"(J145-J139)*100","v":{"v":0,"d":"0.0"}}]
[null,null," ５月",null,"人",null,"人",31,"日",{"$f":"IFERROR(D146/(F146*H146),0)","v":{"v":0,"d":"0.0%"}},null,{"$f":"(J146-J140)*100","v":{"v":0,"d":"0.0"}}]
[null,null," ６月",null,"人",null,"人",30,"日",{"$f":"IFERROR(D147/(F147*H147),0)","v":{"v":0,"d":"0.0%"}},null,{"v":0,"d":"0.0"}]
[]
[{"$nulls":3},"※介護予防含む"]
[{"$nulls":3},"※短期入所（空床型）を実施していない場合、記入不要"]
[]
[]
[]
[null,"次期介護報酬改定に向けて、特別養護老人ホームに関して改善すべきと考えられる事項等ございましたら、ご記入ください。"]

{"sheet":"短期入所生活介護","index":3,"n_rows":148,"n_cols":21,"rows_kept":148,"hidden":true,"merged":[[0,0,0,16],[1,0,1,16],[5,1,5,2],[5,3,5,8],[6,1,6,2],[8,1,10,2],[8,3,8,11],[9,3,9,11],[10,3,10,11],[12,1,12,2],[12,4,12,14],[14,1,14,2],[14,5,14,7],[16,1,16,2],[17,1,17,2],[17,5,19,15],[18,1,18,2],[19,1,19,2],[20,1,20,2],[35,3,35,4],[35,5,35,6],[35,7,35,8],[36,7,36,8],[37,7,37,8],[38,7,38,8],[45,2,45,12],[55,2,55,3],[55,4,55,12],[56,2,56,12],[63,2,63,12],[73,2,73,3],[73,4,73,12],[74,2,74,12],[81,2,81,12],[91,2,91,3],[91,4,91,12],[92,2,92,12],[116,3,116,4],[116,5,116,6],[116,7,116,8],[123,3,123,4],[123,5,123,6],[123,7,123,8],[131,1,131,16],[133,2,133,12],[135,6,135,12],[137,2,137,12],[139,3,139,5],[139,6,139,12],[141,6,141,12],[145,3,145,9],[149,1,149,15]]}
[]
["【短期入所生活介護シート】"]
[null,"※空床利用分は除いて記入して下さい。"]
[null,"《基本情報》"]
[]
[null,"事業所名",{"$nulls":18},{"$f":"COUNTIF(U7:W7,TRUE)","v":0}]
[null,"施設型",null," 単独型","   併設型　（本体施設：　　　特別養護老人ホーム　　　  ",{"$nulls":7},"その他）"]
[]
[null,"介護予防短期入所生活\n介護の一体的な実施",null,"同一の事業所において一体的に実施"]
[{"$nulls":3},"同一の事業所において一体的に実施していない（別の事業所で実施）"]
[{"$nulls":3},"そもそも介護予防短期入所生活介護は実施していない"]
[{"$nulls":4},"↓↓　※以降の住所を記入　↓↓"]
[null,"所在地"]
[]
[null,"級地区分",null,null,"▼","級地区分表参照"]
[]
[null,"令和元年度の営業日数",null,null,"／366日"]
[null,"令和元年度末時点の利用定員",null,null,"人","※介護予防短期入所生活介護も一体的に実施している場合、両事業を踏まえた定員・人数を記載"]
[null,"令和元年度中の延べ利用者数",null,null,"人"]
[null,"令和元年度の利用者実人数",null,null,"人"]
[null,"利用率",null,{"$f":"IFERROR(+D19/(D18*D17)*100,0)","v":{"v":0,"d":"0.0"}},"％"]
[]
[]
[]
[null,"《サービスの経営状態と新型コロナウイルス感染症が与える影響について》"]
[]
[]
[]
[]
[]
[null,"①令和２年４月～６月、令和元年４月～６月のそれぞれの月ごとの「サービス活動増減差額」を教えてください。"]
[null,null,"※マイナスの場合、「- ○,○○○」 と記入してください。"]
[null,null,"※介護予防短期入所介護も一体的に実施している場合、両事業を踏まえた金額を記入してください。"]
[]
[]
[{"$nulls":3},"令和２年",null,"令和元年",null,"前年差額"]
[null,null," ４月",null,"円",null,"円",{"$f":"+D37-F37","v":{"v":0,"d":"0 "}}]
[null,null," ５月",null,"円",null,"円",{"$f":"+D38-F38","v":{"v":0,"d":"0 "}}]
[null,null," ６月",null,"円",null,"円",{"v":0,"d":"0 "}]
[]
[]
[]
[null,null,"【令和２年４月のサービス活動増減差額が前年同月比で「減少」している場合】"]
[null,null,"その変化の主な要因は、新型コロナウイルス感染症によるものですか？"]
[]
[null,null," はい"]
[null,null,"（主な理由を次から選択 最大３つ）",{"$nulls":17},{"$f":"COUNTIF(U48:U56,TRUE)","v":0}]
[null,null,"　 紹介・相談・見学件数の減少、営業を控えたこと等により、利用率が減少または新規入所が減少したため"]
[null,null,"　 行政からの休業要請に応じたため"]
[null,null,"　 併設する本体施設の利用者への感染拡大を防止する観点から営業を縮小または停止したため"]
[null,null,"　 上記の理由以外で自主的な判断に基づき、縮小または休業を行ったため"]
[null,null,"　 人件費または採用に要する費用が増加したため"]
[null,null,"　 （残業代増、業務量増加にともなう派遣職員の配置等に係る支出増、"]
[null,null,"　  コロナを理由とした離職にともなう採用活動を実施に係る費用増など）"]
[null,null,"　 衛生用品・防護用品の確保および感染予防のための設備費用等にともなう支出増"]
[null,null,"　 その他"]
[null,null," いいえ"]
[]
[]
[]
[null,null,"【令和２年５月のサービス活動増減差額が前年同月比で「減少」している場合】"]
[null,null,"その変化の主な要因は、新型コロナウイルス感染症によるものですか？"]
[]
[null,null," はい"]
[null,null,"（主な理由を次から選択 最大３つ）",{"$nulls":17},{"$f":"COUNTIF(U66:U74,TRUE)","v":0}]
[null,null,"　 紹介・相談・見学件数の減少、営業を控えたこと等により、利用率が減少または新規入所が減少したため"]
[null,null,"　 行政からの休業要請に応じたため"]
[null,null,"　 併設する本体施設の利用者への感染拡大を防止する観点から営業を縮小または停止したため"]
[null,null,"　 上記の理由以外で自主的な判断に基づき、縮小または休業を行ったため"]
[null,null,"　 人件費または採用に要する費用が増加したため"]
[null,null,"　 （残業代増、業務量増加にともなう派遣職員の配置等に係る支出増、"]
[null,null,"　 　コロナを理由とした離職にともなう採用活動を実施に係る費用増など）"]
[null,null,"　 衛生用品・防護用品の確保および感染予防のための設備費用等にともなう支出増"]
[null,null,"　 その他"]
[null,null," いいえ"]
[]
[]
[]
[null,null,"【令和２年６月のサービス活動増減差額が前年同月比で「減少」している場合】"]
[null,null,"その変化の主な要因は、新型コロナウイルス感染症によるものですか？"]
[]
[null,null," はい"]
[null,null,"（主な理由を次から選択 最大３つ）",{"$nulls":17},{"$f":"COUNTIF(U84:U92,TRUE)","v":0}]
[null,null,"　 紹介・相談・見学件数の減少、営業を控えたこと等により、利用率が減少または新規入所が減少したため"]
[null,null,"　 行政からの休業要請に応じたため"]
[null,null,"　 併設する本体施設の利用者への感染拡大を防止する観点から営業を縮小または停止したため"]
[null,null,"　 上記の理由以外で自主的な判断に基づき、縮小または休業を行ったため"]
[null,null,"　 人件費または採用に要する費用が増加したため"]
[null,null,"　 （残業代増、業務量増加にともなう派遣職員の配置等に係る支出増、"]
[null,null,"　 　コロナを理由とした離職にともなう採用活動を実施に係る費用増など）"]
[null,null,"　 衛生用品・防護用品の確保および感染予防のための設備費用等にともなう支出増"]
[null,null,"　 その他"]
[null,null," いいえ"]
[]
[]
[]
[null,"②利用率の状況について教えてください。"]
{"$rows_empty":15}
[null,"・令和２年４月～６月、令和元年４月～６月のそれぞれの月ごとの「利用率」を教えてください。"]
[]
[{"$nulls":4},"※自費でサービスを利用する人、要介護認定申請中の人も含める"]
[null,null,"【令和元年度】",null,"※介護予防短期入所生活介護も一体的実施している場合、両事業を踏まえた定員・人数を記載"]
[{"$nulls":3},"延べ利用者数",null,"定員",null,"営業日数",null,"利用率"]
[null,null," ４月",null,"人",null,"人",null,"日",{"$f":"IFERROR(D118/(F118*H118),0)","v":{"v":0,"d":"0.0%"}}]
[null,null," ５月",null,"人",null,"人",null,"日",{"$f":"IFERROR(D119/(F119*H119),0)","v":{"v":0,"d":"0.0%"}}]
[null,null," ６月",null,"人",null,"人",null,"日",{"$f":"IFERROR(D120/(F120*H120),0)","v":{"v":0,"d":"0.0%"}}]
[]
[{"$nulls":4},"※自費でサービスを利用する人、要介護認定申請中の人も含める"]
[null,null,"【令和２年度】",null,"※介護予防短期入所生活介護も一体的実施している場合、両事業を踏まえた定員・人数を記載"]
[{"$nulls":3},"延べ利用者数",null,"定員",null,"営業日数",null,"利用率",null,"前年同月比"]
[null,null," ４月",null,"人",null,"人",null,"日",{"$f":"IFERROR(D125/(F125*H125),0)","v":{"v":0,"d":"0.0%"}},null,{"$f":"(J125-J118)*100","v":{"v":0,"d":"0.0"}}]
[null,null," ５月",null,"人",null,"人",null,"日",{"$f":"IFERROR(D126/(F126*H126),0)","v":{"v":0,"d":"0.0%"}},null,{"$f":"(J126-J119)*100","v":{"v":0,"d":"0.0"}}]
[null,null," ６月",null,"人",null,"人",null,"日",{"$f":"IFERROR(D127/(F127*H127),0)","v":{"v":0,"d":"0.0%"}},null,{"v":0,"d":"0.0"}]
[]
[]
[]
[]
[null,"③「新型コロナウイルス感染症に係る介護サービス事業所の人員基準等の臨時的な取扱いについて（第12報）」（６月１日）において\n　　示された特例（緊急短期入所受入加算の算定）の適用状況等について教えてください。"]
[]
[null,null,"すべての利用者もしくは一部の利用者について適用している（過去に適用したも含む）"]
[{"$nulls":3},"適用にあたり障壁があった"]
[{"$nulls":5},"障壁の具体的な内容"]
[{"$nulls":3},"問題なく適用することができた"]
[null,null,"適用していない"]
[{"$nulls":3},"今後適用予定"]
[{"$nulls":3}," 現時点で障壁を感じている場合、\n その具体的な内容"]
[{"$nulls":3},"適用を検討したが障壁があり、適用しないこととした"]
[{"$nulls":5},"障壁の具体的な内容"]
[{"$nulls":3},"適用を検討していない"]
[]
[]
[null,null,"参考：","https://www.mhlw.go.jp/content/000635979.pdf"]
[]
[null,"次期介護報酬改定に向けて、短期入所生活介護に関して改善すべきと考えられる事項等ございましたら、ご記入ください。"]

{"sheet":"mas","index":4,"n_rows":59,"n_cols":33,"rows_kept":59,"hidden":true}
[{"$nulls":8},"【21短期入所生活介護】",{"$nulls":3},"【21短期入所生活介護】",{"$nulls":3},"【15 通所介護】",{"$nulls":3},"【15 通所介護】",{"$nulls":3},"【72 認知症対応型通所介護】",{"$nulls":3},"【72 認知症対応型通所介護】",{"$nulls":3},"【訪問介護】"]
[null,"{Rng書類カテ}",null,"{Rng都道府県}",{"$nulls":4},"{Select短期入所}",{"$nulls":3},"{Slct短期入所生活介護}",{"$nulls":3},"{Select通所}",{"$nulls":3},"{Slct通所介護}",{"$nulls":3},"{Select認知症}",{"$nulls":3},"{Slct認知症対応型通所介護}",{"$nulls":3},"{Select訪問}"]
[{"$nulls":8},"サービス名",{"$nulls":3},"加算･減算名",{"$nulls":3},"サービス名",{"$nulls":3},"加算･減算名",{"$nulls":3},"サービス名",{"$nulls":3},"加算･減算名",{"$nulls":3},"加算･減算名"]
[null,"書類カテゴリ（選択）",null,"都道府県"]
[{"$nulls":8},"短期入所生活介護",{"$nulls":3},"機能訓練体制加算",{"$nulls":3},"通所介護",{"$nulls":3},"延長加算",{"$nulls":3},"認知症対応型通所介護",{"$nulls":3},"延長加算",{"$nulls":3},"２人の訪問介護員等による場合"]
[null,"指定申請関連文書",null,"北海道",{"$nulls":4},"介護予防短期入所生活介護",{"$nulls":3},"個別機能訓練加算",{"$nulls":3},"地域密着型通所介護",{"$nulls":3},"中山間地域等に居住する者へのサービス提供加算",{"$nulls":3},"介護予防認知症対応型通所介護",{"$nulls":3},"入浴介助加算",{"$nulls":3},"夜間若しくは早朝の場合"]
[null,"報酬請求関連文書",null,"青森県",{"$nulls":8},"看護体制加算Ｉ",{"$nulls":7},"入浴介助加算",{"$nulls":7},"生活機能向上連携加算",{"$nulls":3},"深夜の場合"]
[null,"指導監査関連文書",null,"岩手県",{"$nulls":8},"看護体制加算II",{"$nulls":7},"中重度者ケア体制加算",{"$nulls":7},"個別機能訓練加算",{"$nulls":3},"特定事業所加算（Ｉ）"]
[null,"その他",null,"宮城県",{"$nulls":8},"医療連携強化加算",{"$nulls":7},"個別機能訓練加算Ｉ",{"$nulls":7},"若年性認知症利用者受入加算",{"$nulls":3},"特定事業所加算(II)"]
[{"$nulls":3},"秋田県",{"$nulls":8},"夜勤職員配置加算Ｉ",{"$nulls":7},"個別機能訓練加算II",{"$nulls":7},"栄養改善加算",{"$nulls":3},"特定事業所加算(Ⅲ)"]
[{"$nulls":3},"山形県",{"$nulls":8},"夜勤職員配置加算II",{"$nulls":7},"認知症加算",{"$nulls":7},"栄養スクリーニング加算",{"$nulls":3},"特定事業所加算(Ⅳ)"]
[{"$nulls":3},"福島県",{"$nulls":8},"認知症行動・心理症状緊急対応加算",{"$nulls":7},"若年性認知症利用者受入加算",{"$nulls":7},"口腔機能向上加算",{"$nulls":3},"特別地域訪問介護加算"]
[null,"*ﾕｰｻﾞｰﾌｫｰﾑで使用",null,"茨城県",{"$nulls":8},"若年性認知症利用者受入加算",{"$nulls":7},"栄養改善加算",{"$nulls":7},"サービス提供体制強化加算（Ⅰ）イ",{"$nulls":3},"中山間地域等における小規模事業所加算"]
[{"$nulls":3},"栃木県",{"$nulls":8},"送迎加算",{"$nulls":7},"口腔機能向上加算",{"$nulls":7},"サービス提供体制強化加算（Ⅰ）ロ",{"$nulls":3},"中山間地域等に居住する者へのサービス提供加算"]
[null,"施設ｶｳﾝﾄ",null,"群馬県",{"$nulls":8},"緊急短期入所受入加算",{"$nulls":7},"個別送迎体制強化加算",{"$nulls":7},"サービス提供体制強化加算（Ⅱ）",{"$nulls":3},"緊急時訪問介護加算"]
[{"$nulls":3},"埼玉県",{"$nulls":8},"療養食加算",{"$nulls":7},"入浴介助体制強化加算",{"$nulls":7},"介護職員処遇改善加算（Ⅰ）",{"$nulls":3},"初回加算"]
[{"$nulls":3},"千葉県",{"$nulls":8},"在宅中重度者受入加算",{"$nulls":7},"サービス提供体制強化加算（Ｉ）イ",{"$nulls":7},"介護職員処遇改善加算（Ⅱ）",{"$nulls":3},"生活機能向上連携加算"]
[null,"施設名",null,"東京都",{"$nulls":8},"サービス提供体制強化加算（Ｉ）イ",{"$nulls":7},"サービス提供体制強化加算（Ｉ）口",{"$nulls":7},"介護職員処遇改善加算（Ⅲ）",{"$nulls":3},"介護職員処遇改善加算（Ｉ）"]
[null,"【通所介護等】シート追加選択",null,"神奈川県",{"$nulls":8},"サービス提供体制強化加算（Ｉ）口",{"$nulls":7},"サービス提供体制強化加算(II)",{"$nulls":7},"介護職員処遇改善加算（Ⅳ）",{"$nulls":3},"介護職員処遇改善加算(II)"]
[{"$nulls":3},"新潟県",{"$nulls":8},"サービス提供体制強化加算II",{"$nulls":7},"サービス提供体制強化加算(Ⅲ)",{"$nulls":7},"その他加算",{"$nulls":3},"介護職員処遇改善加算(Ⅲ)"]
[{"$nulls":3},"富山県",{"$nulls":8},"サービス提供体制強化加算Ⅲ",{"$nulls":7},"介護職員処遇改善加算（Ｉ）",{"$nulls":11},"介護職員処遇改善加算(Ⅳ)"]
[null,"施設キーワード",null,"石川県",{"$nulls":8},"介護職員処遇改善加算(Ｉ）",{"$nulls":7},"介護職員処遇改善加算(II)",{"$nulls":11},"その他加算"]
[null,"訪問介護",null,"福井県",{"$nulls":8},"介護職員処遇改善加算(II)",{"$nulls":7},"介護職員処遇改善加算(Ⅲ)"]
[{"$nulls":3},"山梨県",{"$nulls":8},"介護職員処遇改善加算(Ⅲ)",{"$nulls":7},"介護職員処遇改善加算(Ⅳ)"]
[{"$nulls":3},"長野県",{"$nulls":8},"介護職員処遇改善加算(Ⅳ)",{"$nulls":7},"その他加算"]
[{"$nulls":3},"岐阜県",{"$nulls":8},"その他加算"]
[{"$nulls":3},"静岡県"]
[{"$nulls":3},"愛知県"]
[{"$nulls":3},"三重県",{"$nulls":8},"【24 介護予防短期入所生活介護費】",{"$nulls":7},"【78 地域密着型通所介護費用】",{"$nulls":7},"【74　介護予防認知症対応型通所介護】"]
[{"$nulls":3},"滋賀県",{"$nulls":8},"{Slct介護予防短期入所生活介護費}",{"$nulls":7},"{Slct地域密着型通所介護}",{"$nulls":7},"{Slct介護予防認知症対応型通所介護}"]
[{"$nulls":3},"京都府",{"$nulls":8},"加算･減算名",{"$nulls":7},"加算･減算名",{"$nulls":7},"加算･減算名"]
[{"$nulls":3},"大阪府"]
[{"$nulls":3},"兵庫県",{"$nulls":8},"機能訓練指導員加算",{"$nulls":7},"延長加算",{"$nulls":7},"延長加算"]
[{"$nulls":3},"奈良県",{"$nulls":8},"個別機能訓練加算",{"$nulls":7},"生活相談員配置等加算",{"$nulls":7},"入浴介助加算"]
[{"$nulls":3},"和歌山県",{"$nulls":8},"認知症行動・心理症状緊急対応加算",{"$nulls":7},"中山間地域等に居住する者へのサービス提供加算",{"$nulls":7},"生活機能向上連携加算"]
[{"$nulls":3},"鳥取県",{"$nulls":8},"若年性認知症利用者受入加算",{"$nulls":7},"入浴介助加算",{"$nulls":7},"個別機能訓練加算"]
[{"$nulls":3},"島根県",{"$nulls":8},"送迎加算",{"$nulls":7},"中重度者ケア体制加算",{"$nulls":7},"若年性認知症利用者受入加算"]
[{"$nulls":3},"岡山県",{"$nulls":8},"療養食加算",{"$nulls":7},"生活機能向上連携加算",{"$nulls":7},"栄養改善加算"]
[{"$nulls":3},"広島県",{"$nulls":8},"サービス提供体制強化加算（Ｉ）イ",{"$nulls":7},"個別機能訓練加算Ｉ",{"$nulls":7},"栄養スクリーニング加算"]
[{"$nulls":3},"山口県",{"$nulls":8},"サービス提供体制強化加算（Ｉ）口",{"$nulls":7},"個別機能訓練加算II",{"$nulls":7},"口腔機能向上加算"]
[{"$nulls":3},"徳島県",{"$nulls":8},"サービス提供体制強化加算II",{"$nulls":7},"ADL維持等加算（Ｉ）",{"$nulls":7},"サービス提供体制強化加算（Ⅰ）イ"]
[{"$nulls":3},"香川県",{"$nulls":8},"サービス提供体制強化加算Ⅲ",{"$nulls":7},"ADL維持等加算(II)",{"$nulls":7},"サービス提供体制強化加算（Ⅰ）ロ"]
[{"$nulls":3},"愛媛県",{"$nulls":8},"介護職員処遇改善加算（Ｉ）",{"$nulls":7},"認知症加算",{"$nulls":7},"サービス提供体制強化加算（Ⅱ）"]
[{"$nulls":3},"高知県",{"$nulls":8},"介護職員処遇改善加算(II)",{"$nulls":7},"若年性認知症利用者受入加算",{"$nulls":7},"介護職員処遇改善加算（Ⅰ）"]
[{"$nulls":3},"福岡県",{"$nulls":8},"介護職員処遇改善加算(Ⅲ)",{"$nulls":7},"栄養改善加算",{"$nulls":7},"介護職員処遇改善加算（Ⅱ）"]
[{"$nulls":3},"佐賀県",{"$nulls":8},"介護職員処遇改善加算(Ⅳ)",{"$nulls":7},"栄養スクリーニング加算",{"$nulls":7},"介護職員処遇改善加算（Ⅲ）"]
[{"$nulls":3},"長崎県",{"$nulls":8},"その他加算",{"$nulls":7},"口腔機能向上加算",{"$nulls":7},"介護職員処遇改善加算（Ⅳ）"]
[{"$nulls":3},"熊本県",{"$nulls":16},"個別送迎体制強化加算",{"$nulls":7},"その他加算"]
[{"$nulls":3},"大分県",{"$nulls":16},"入浴介助体制強化加算"]
[{"$nulls":3},"宮崎県",{"$nulls":16},"サービス提供体制強化加算（Ｉ）イ"]
[{"$nulls":3},"鹿児島県",{"$nulls":16},"サービス提供体制強化加算（Ｉ）口"]
[{"$nulls":3},"沖縄県",{"$nulls":16},"サービス提供体制強化加算(II)"]
[{"$nulls":20},"サービス提供体制強化加算(Ⅲ)"]
[{"$nulls":20},"介護職員処遇改善加算（Ｉ）"]
[{"$nulls":20},"介護職員処遇改善加算(II)"]
[{"$nulls":20},"介護職員処遇改善加算(Ⅲ)"]
[{"$nulls":20},"介護職員処遇改善加算(Ⅳ)"]
[{"$nulls":20},"介護職員処遇改善加算(Ｖ)"]
[{"$nulls":20},"その他加算"]

{"sheet":"短期入所生活介護1","index":5,"n_rows":148,"n_cols":21,"rows_kept":148,"merged":[[0,0,0,16],[1,0,1,16],[5,1,5,2],[5,3,5,8],[6,1,6,2],[8,1,10,2],[8,3,8,11],[9,3,9,11],[10,3,10,11],[12,1,12,2],[12,4,12,14],[14,1,14,2],[14,5,14,7],[16,1,16,2],[17,1,17,2],[17,5,19,15],[18,1,18,2],[19,1,19,2],[20,1,20,2],[35,3,35,4],[35,5,35,6],[35,7,35,8],[36,7,36,8],[37,7,37,8],[38,7,38,8],[45,2,45,12],[55,2,55,3],[55,4,55,12],[56,2,56,12],[63,2,63,12],[73,2,73,3],[73,4,73,12],[74,2,74,12],[81,2,81,12],[91,2,91,3],[91,4,91,12],[92,2,92,12],[116,3,116,4],[116,5,116,6],[116,7,116,8],[123,3,123,4],[123,5,123,6],[123,7,123,8],[131,1,131,16],[133,2,133,12],[135,6,135,12],[137,2,137,12],[139,3,139,5],[139,6,139,12],[141,6,141,12],[145,3,145,9],[149,1,149,15]]}
[]
["【短期入所生活介護シート】"]
[null,"※空床利用分は除いて記入して下さい。"]
[null,"《基本情報》"]
[]
[null,"事業所名",{"$nulls":18},{"$f":"COUNTIF(U7:W7,TRUE)","v":0}]
[null,"施設型",null," 単独型","   併設型　（本体施設：　　　特別養護老人ホーム　　　  ",{"$nulls":7},"その他）"]
[]
[null,"介護予防短期入所生活\n介護の一体的な実施",null,"同一の事業所において一体的に実施"]
[{"$nulls":3},"同一の事業所において一体的に実施していない（別の事業所で実施）"]
[{"$nulls":3},"そもそも介護予防短期入所生活介護は実施していない"]
[{"$nulls":4},"↓↓　※以降の住所を記入　↓↓"]
[null,"所在地"]
[]
[null,"級地区分",null,null,"▼","級地区分表参照"]
[]
[null,"令和元年度の営業日数",null,null,"／366日"]
[null,"令和元年度末時点の利用定員",null,null,"人","※介護予防短期入所生活介護も一体的に実施している場合、両事業を踏まえた定員・人数を記載"]
[null,"令和元年度中の延べ利用者数",null,null,"人"]
[null,"令和元年度の利用者実人数",null,null,"人"]
[null,"利用率",null,{"$f":"IFERROR(+D19/(D18*D17)*100,0)","v":{"v":0,"d":"0.0"}},"％"]
[]
[]
[]
[null,"《サービスの経営状態と新型コロナウイルス感染症が与える影響について》"]
[]
[]
[]
[]
[]
[null,"①令和２年４月～６月、令和元年４月～６月のそれぞれの月ごとの「サービス活動増減差額」を教えてください。"]
[null,null,"※マイナスの場合、「- ○,○○○」 と記入してください。"]
[null,null,"※介護予防短期入所介護も一体的に実施している場合、両事業を踏まえた金額を記入してください。"]
[]
[]
[{"$nulls":3},"令和２年",null,"令和元年",null,"前年差額"]
[null,null," ４月",null,"円",null,"円",{"$f":"+D37-F37","v":{"v":0,"d":"0 "}}]
[null,null," ５月",null,"円",null,"円",{"$f":"+D38-F38","v":{"v":0,"d":"0 "}}]
[null,null," ６月",null,"円",null,"円",{"v":0,"d":"0 "}]
[]
[]
[]
[null,null,"【令和２年４月のサービス活動増減差額が前年同月比で「減少」している場合】"]
[null,null,"その変化の主な要因は、新型コロナウイルス感染症によるものですか？"]
[]
[null,null," はい"]
[null,null,"（主な理由を次から選択 最大３つ）",{"$nulls":17},{"$f":"COUNTIF(U48:U56,TRUE)","v":0}]
[null,null,"　 紹介・相談・見学件数の減少、営業を控えたこと等により、利用率が減少または新規入所が減少したため"]
[null,null,"　 行政からの休業要請に応じたため"]
[null,null,"　 併設する本体施設の利用者への感染拡大を防止する観点から営業を縮小または停止したため"]
[null,null,"　 上記の理由以外で自主的な判断に基づき、縮小または休業を行ったため"]
[null,null,"　 人件費または採用に要する費用が増加したため"]
[null,null,"　 （残業代増、業務量増加にともなう派遣職員の配置等に係る支出増、"]
[null,null,"　  コロナを理由とした離職にともなう採用活動を実施に係る費用増など）"]
[null,null,"　 衛生用品・防護用品の確保および感染予防のための設備費用等にともなう支出増"]
[null,null,"　 その他"]
[null,null," いいえ"]
[]
[]
[]
[null,null,"【令和２年５月のサービス活動増減差額が前年同月比で「減少」している場合】"]
[null,null,"その変化の主な要因は、新型コロナウイルス感染症によるものですか？"]
[]
[null,null," はい"]
[null,null,"（主な理由を次から選択 最大３つ）",{"$nulls":17},{"$f":"COUNTIF(U66:U74,TRUE)","v":0}]
[null,null,"　 紹介・相談・見学件数の減少、営業を控えたこと等により、利用率が減少または新規入所が減少したため"]
[null,null,"　 行政からの休業要請に応じたため"]
[null,null,"　 併設する本体施設の利用者への感染拡大を防止する観点から営業を縮小または停止したため"]
[null,null,"　 上記の理由以外で自主的な判断に基づき、縮小または休業を行ったため"]
[null,null,"　 人件費または採用に要する費用が増加したため"]
[null,null,"　 （残業代増、業務量増加にともなう派遣職員の配置等に係る支出増、"]
[null,null,"　 　コロナを理由とした離職にともなう採用活動を実施に係る費用増など）"]
[null,null,"　 衛生用品・防護用品の確保および感染予防のための設備費用等にともなう支出増"]
[null,null,"　 その他"]
[null,null," いいえ"]
[]
[]
[]
[null,null,"【令和２年６月のサービス活動増減差額が前年同月比で「減少」している場合】"]
[null,null,"その変化の主な要因は、新型コロナウイルス感染症によるものですか？"]
[]
[null,null," はい"]
[null,null,"（主な理由を次から選択 最大３つ）",{"$nulls":17},{"$f":"COUNTIF(U84:U92,TRUE)","v":0}]
[null,null,"　 紹介・相談・見学件数の減少、営業を控えたこと等により、利用率が減少または新規入所が減少したため"]
[null,null,"　 行政からの休業要請に応じたため"]
[null,null,"　 併設する本体施設の利用者への感染拡大を防止する観点から営業を縮小または停止したため"]
[null,null,"　 上記の理由以外で自主的な判断に基づき、縮小または休業を行ったため"]
[null,null,"　 人件費または採用に要する費用が増加したため"]
[null,null,"　 （残業代増、業務量増加にともなう派遣職員の配置等に係る支出増、"]
[null,null,"　 　コロナを理由とした離職にともなう採用活動を実施に係る費用増など）"]
[null,null,"　 衛生用品・防護用品の確保および感染予防のための設備費用等にともなう支出増"]
[null,null,"　 その他"]
[null,null," いいえ"]
[]
[]
[]
[null,"②利用率の状況について教えてください。"]
{"$rows_empty":15}
[null,"・令和２年４月～６月、令和元年４月～６月のそれぞれの月ごとの「利用率」を教えてください。"]
[]
[{"$nulls":4},"※自費でサービスを利用する人、要介護認定申請中の人も含める"]
[null,null,"【令和元年度】",null,"※介護予防短期入所生活介護も一体的実施している場合、両事業を踏まえた定員・人数を記載"]
[{"$nulls":3},"延べ利用者数",null,"定員",null,"営業日数",null,"利用率"]
[null,null," ４月",null,"人",null,"人",null,"日",{"$f":"IFERROR(D118/(F118*H118),0)","v":{"v":0,"d":"0.0%"}}]
[null,null," ５月",null,"人",null,"人",null,"日",{"$f":"IFERROR(D119/(F119*H119),0)","v":{"v":0,"d":"0.0%"}}]
[null,null," ６月",null,"人",null,"人",null,"日",{"$f":"IFERROR(D120/(F120*H120),0)","v":{"v":0,"d":"0.0%"}}]
[]
[{"$nulls":4},"※自費でサービスを利用する人、要介護認定申請中の人も含める"]
[null,null,"【令和２年度】",null,"※介護予防短期入所生活介護も一体的実施している場合、両事業を踏まえた定員・人数を記載"]
[{"$nulls":3},"延べ利用者数",null,"定員",null,"営業日数",null,"利用率",null,"前年同月比"]
[null,null," ４月",null,"人",null,"人",null,"日",{"$f":"IFERROR(D125/(F125*H125),0)","v":{"v":0,"d":"0.0%"}},null,{"$f":"(J125-J118)*100","v":{"v":0,"d":"0.0"}}]
[null,null," ５月",null,"人",null,"人",null,"日",{"$f":"IFERROR(D126/(F126*H126),0)","v":{"v":0,"d":"0.0%"}},null,{"$f":"(J126-J119)*100","v":{"v":0,"d":"0.0"}}]
[null,null," ６月",null,"人",null,"人",null,"日",{"$f":"IFERROR(D127/(F127*H127),0)","v":{"v":0,"d":"0.0%"}},null,{"v":0,"d":"0.0"}]
[]
[]
[]
[]
[null,"③「新型コロナウイルス感染症に係る介護サービス事業所の人員基準等の臨時的な取扱いについて（第12報）」（６月１日）において\n　　示された特例（緊急短期入所受入加算の算定）の適用状況等について教えてください。"]
[]
[null,null,"すべての利用者もしくは一部の利用者について適用している（過去に適用したも含む）"]
[{"$nulls":3},"適用にあたり障壁があった"]
[{"$nulls":5},"障壁の具体的な内容"]
[{"$nulls":3},"問題なく適用することができた"]
[null,null,"適用していない"]
[{"$nulls":3},"今後適用予定"]
[{"$nulls":3}," 現時点で障壁を感じている場合、\n その具体的な内容"]
[{"$nulls":3},"適用を検討したが障壁があり、適用しないこととした"]
[{"$nulls":5},"障壁の具体的な内容"]
[{"$nulls":3},"適用を検討していない"]
[]
[]
[null,null,"参考：","https://www.mhlw.go.jp/content/000635979.pdf"]
[]
[null,"次期介護報酬改定に向けて、短期入所生活介護に関して改善すべきと考えられる事項等ございましたら、ご記入ください。"]

{"sheet":"通所介護等","index":6,"n_rows":173,"n_cols":21,"rows_kept":173,"hidden":true,"merged":[[0,0,0,16],[1,0,1,16],[5,2,5,7],[9,3,9,11],[11,5,11,7],[13,1,13,2],[14,1,14,2],[15,1,15,2],[16,1,16,2],[17,1,17,2],[31,3,31,4],[31,5,31,6],[31,7,31,8],[32,7,32,8],[33,7,33,8],[34,7,34,8],[42,2,42,12],[52,2,52,3],[52,4,52,12],[53,2,53,12],[60,2,60,12],[70,2,70,3],[70,4,70,12],[71,2,71,12],[78,2,78,12],[88,2,88,3],[88,4,88,12],[89,2,89,12],[123,3,123,4],[123,5,123,6],[123,7,123,8],[129,3,129,4],[129,5,129,6],[129,7,129,8],[138,1,138,16],[140,2,140,12],[142,6,142,12],[144,2,144,12],[146,6,146,12],[148,6,148,12],[152,3,152,9],[155,1,155,16],[157,2,157,12],[159,6,159,12],[161,2,161,12],[163,6,163,12],[165,6,165,12],[169,3,169,9],[174,1,174,15]]}
[]
["【通所介護・地域密着型通所介護シート】"]
[]
[null,"《基本情報》"]
[]
[null,"事業所名"]
[null,"施設型"," 地域密着型　　　　通常規模型",null,null,"大規模型（Ⅰ）　　　　　　　大規模型（Ⅱ）"]
[null,"併設の状況","　単独　　　　特養に併設　　　　その他施設に併設"]
[{"$nulls":3},"↓↓　※以降の住所を記入　↓↓"]
[null,"所在地"]
[]
[null,"級地区分",null,"▼",null,"級地区分表参照"]
[]
[null,"令和元年度の営業日数",null,null,"／366日"]
[null,"令和元年度末時点の利用定員",null,null,"名"]
[null,"令和元年度中の延べ利用者数",null,null,"名"]
[null,"令和元年度末時点の登録者数（実人数）",null,null,"人"]
[null,"利用率",null,{"$f":"IFERROR(+D16/(D15*D14)*100,0)","v":{"v":0,"d":"0.0"}},"％"]
[]
[]
[]
[null,"《サービスの経営状態と新型コロナウイルス感染症が与える影響について》"]
[]
[]
[]
[]
[]
[]
[null,"①令和２年４月～６月、令和元年４月～６月のそれぞれの月ごとの「サービス活動増減差額」を教えてください。"]
[null,null,"※マイナスの場合、「- ○,○○○」 と記入してください。"]
[]
[{"$nulls":3},"令和２年",null,"令和元年",null,"前年差額"]
[null,null," ４月",null,"円",null,"円",{"$f":"+D33-F33","v":{"v":0,"d":"0 "}}]
[null,null," ５月",null,"円",null,"円",{"$f":"+D34-F34","v":{"v":0,"d":"0 "}}]
[null,null," ６月",null,"円",null,"円",{"v":0,"d":"0 "}]
[]
[]
[]
[]
[null,null,"【令和２年４月のサービス活動増減差額が前年同月比で「減少」している場合】"]
[null,null,"その変化の主な要因は、新型コロナウイルス感染症によるものですか？"]
[]
[null,null," はい"]
[null,null,"（主な理由を次から選択 最大３つ）",{"$nulls":17},{"$f":"COUNTIF(U45:U53,TRUE)","v":0}]
[null,null,"　 紹介・相談・見学件数の減少、営業を控えたこと等により、利用率が減少または新規入所が減少したため"]
[null,null,"　 行政からの休業要請に応じたため"]
[null,null,"　 併設する本体施設の利用者への感染拡大を防止する観点から営業を縮小または停止したため"]
[null,null,"　 上記の理由以外で自主的な判断に基づき、縮小または休業を行ったため"]
[null,null,"　 人件費または採用に要する費用が増加したため"]
[null,null,"　 （残業代増、業務量増加にともなう派遣職員の配置等に係る支出増、"]
[null,null,"　 　コロナを理由とした離職にともなう採用活動を実施に係る費用増など）"]
[null,null,"　 衛生用品・防護用品の確保および感染予防のための設備費用等にともなう支出増"]
[null,null,"　 その他"]
[null,null," いいえ"]
[]
[]
[]
[null,null,"【令和２年５月のサービス活動増減差額が前年同月比で「減少」している場合】"]
[null,null,"その変化の主な要因は、新型コロナウイルス感染症によるものですか？"]
[]
[null,null," はい"]
[null,null,"（主な理由を次から選択 最大３つ）",{"$nulls":17},{"$f":"COUNTIF(U63:U71,TRUE)","v":0}]
[null,null,"　 紹介・相談・見学件数の減少、営業を控えたこと等により、利用率が減少または新規入所が減少したため"]
[null,null,"　 行政からの休業要請に応じたため"]
[null,null,"　 併設する本体施設の利用者への感染拡大を防止する観点から営業を縮小または停止したため"]
[null,null,"　 上記の理由以外で自主的な判断に基づき、縮小または休業を行ったため"]
[null,null,"　 人件費または採用に要する費用が増加したため"]
[null,null,"　 （残業代増、業務量増加にともなう派遣職員の配置等に係る支出増、"]
[null,null,"　 　コロナを理由とした離職にともなう採用活動を実施に係る費用増など）"]
[null,null,"　 衛生用品・防護用品の確保および感染予防のための設備費用等にともなう支出増"]
[null,null,"　 その他"]
[null,null," いいえ"]
[]
[]
[]
[null,null,"【令和２年６月のサービス活動増減差額が前年同月比で「減少」している場合】"]
[null,null,"その変化の主な要因は、新型コロナウイルス感染症によるものですか？"]
[]
[null,null," はい"]
[null,null,"（主な理由を次から選択 最大３つ）",{"$nulls":17},{"$f":"COUNTIF(U81:U89,TRUE)","v":0}]
[null,null,"　 紹介・相談・見学件数の減少、営業を控えたこと等により、利用率が減少または新規入所が減少したため"]
[null,null,"　 行政からの休業要請に応じたため"]
[null,null,"　 併設する本体施設の利用者への感染拡大を防止する観点から営業を縮小または停止したため"]
[null,null,"　 上記の理由以外で自主的な判断に基づき、縮小または休業を行ったため"]
[null,null,"　 人件費または採用に要する費用が増加したため"]
[null,null,"　 （残業代増、業務量増加にともなう派遣職員の配置等に係る支出増、"]
[null,null,"　 　コロナを理由とした離職にともなう採用活動を実施に係る費用増など）"]
[null,null,"　 衛生用品・防護用品の確保および感染予防のための設備費用等にともなう支出増"]
[null,null,"　 その他"]
[null,null," いいえ"]
{"$rows_empty":12}
[null,"②利用率の状況について教えてください。"]
{"$rows_empty":17}
[null,"・令和２年４月～６月、令和元年４月～６月のそれぞれの月ごとの「利用率」を教えてください。"]
[]
[null,null,"【令和元年度】",null,"※自費でサービスを利用する人、要介護認定申請中の人も含める"]
[{"$nulls":3},"延べ利用者数",null,"定員",null,"営業日数",null,"利用率"]
[null,null," ４月",null,"人",null,"人",null,"日",{"$f":"IFERROR(D125/(F125*H125),0)","v":{"v":0,"d":"0.0%"}}]
[null,null," ５月",null,"人",null,"人",null,"日",{"$f":"IFERROR(D126/(F126*H126),0)","v":{"v":0,"d":"0.0%"}}]
[null,null," ６月",null,"人",null,"人",null,"日",{"$f":"IFERROR(D127/(F127*H127),0)","v":{"v":0,"d":"0.0%"}}]
[]
[null,null,"【令和２年度】",null,"※自費でサービスを利用する人、要介護認定申請中の人も含める"]
[{"$nulls":3},"延べ利用者数",null,"定員",null,"営業日数",null,"利用率",null,"前年同月比"]
[null,null," ４月",null,"人",null,"人",null,"日",{"$f":"IFERROR(D131/(F131*H131),0)","v":{"v":0,"d":"0.0%"}},null,{"$f":"(J131-J125)*100","v":{"v":0,"d":"0.0"}}]
[null,null," ５月",null,"人",null,"人",null,"日",{"$f":"IFERROR(D132/(F132*H132),0)","v":{"v":0,"d":"0.0%"}},null,{"$f":"(J132-J126)*100","v":{"v":0,"d":"0.0"}}]
[null,null," ６月",null,"人",null,"人",null,"日",{"$f":"IFERROR(D133/(F133*H133),0)","v":{"v":0,"d":"0.0%"}},null,{"v":0,"d":"0.0"}]
[]
[]
[]
[]
[]
[null,"③新型コロナウイルス感染症に係る介護サービス事業所の人員基準等の臨時的な取扱いについて（第12報）」（６月１日）において\n　 示された特例（２区分上位の報酬区分を算定）の適用状況等について教えてください。"]
[]
[null,null,"すべての利用者もしくは一部の利用者について適用している（過去に適用したも含む）"]
[{"$nulls":3},"適用にあたり障壁があった"]
[{"$nulls":5},"障壁の具体的な内容"]
[{"$nulls":3},"問題なく適用することができた"]
[null,null,"適用していない"]
[{"$nulls":3},"今後適用予定"]
[{"$nulls":5},"現時点で障壁を感じている場合、その具体的な内容"]
[{"$nulls":3},"適用を検討したが障壁があり、適用しないこととした"]
[{"$nulls":5},"障壁の具体的な内容"]
[{"$nulls":3},"適用を検討していない"]
[]
[]
[null,null,"参考：","https://www.mhlw.go.jp/content/000635979.pdf"]
[]
[]
[null,"④「新型コロナウイルス感染症に係る介護サービス事業所の人員基準等の臨時的な取扱いについて（第2報）」（2月24日）において\n　　示された特例（居宅の利用者に対する訪問によるサービス提供）の適用状況等について教えてください。"]
[]
[null,null,"すべての利用者もしくは一部の利用者について適用している（過去に適用したも含む）"]
[{"$nulls":3},"適用にあたり障壁があった"]
[{"$nulls":5},"障壁の具体的な内容"]
[{"$nulls":3},"問題なく適用することができた"]
[null,null,"適用していない"]
[{"$nulls":3},"今後適用予定"]
[{"$nulls":5},"現時点で障壁を感じている場合、その具体的な内容"]
[{"$nulls":3},"適用を検討したが障壁があり、適用しないこととした"]
[{"$nulls":5},"障壁の具体的な内容"]
[{"$nulls":3},"適用を検討していない"]
[]
[]
[null,null,"参考：","https://www.mhlw.go.jp/content/000601693.pdf"]
[]
[]
[null,"次期介護報酬改定に向けて、通所介護に関して改善すべきと考えられる事項等ございましたら、ご記入ください。"]

{"sheet":"通所介護等1","index":7,"n_rows":173,"n_cols":21,"rows_kept":173,"merged":[[0,0,0,16],[1,0,1,16],[5,2,5,7],[9,3,9,11],[11,5,11,7],[13,1,13,2],[14,1,14,2],[15,1,15,2],[16,1,16,2],[17,1,17,2],[31,3,31,4],[31,5,31,6],[31,7,31,8],[32,7,32,8],[33,7,33,8],[34,7,34,8],[42,2,42,12],[52,2,52,3],[52,4,52,12],[53,2,53,12],[60,2,60,12],[70,2,70,3],[70,4,70,12],[71,2,71,12],[78,2,78,12],[88,2,88,3],[88,4,88,12],[89,2,89,12],[123,3,123,4],[123,5,123,6],[123,7,123,8],[129,3,129,4],[129,5,129,6],[129,7,129,8],[138,1,138,16],[140,2,140,12],[142,6,142,12],[144,2,144,12],[146,6,146,12],[148,6,148,12],[152,3,152,9],[155,1,155,16],[157,2,157,12],[159,6,159,12],[161,2,161,12],[163,6,163,12],[165,6,165,12],[169,3,169,9],[174,1,174,15]]}
[]
["【通所介護・地域密着型通所介護シート】"]
[]
[null,"《基本情報》"]
[]
[null,"事業所名"]
[null,"施設型"," 地域密着型　　　　通常規模型",null,null,"大規模型（Ⅰ）　　　　　　　大規模型（Ⅱ）"]
[null,"併設の状況","　単独　　　　特養に併設　　　　その他施設に併設"]
[{"$nulls":3},"↓↓　※以降の住所を記入　↓↓"]
[null,"所在地"]
[]
[null,"級地区分",null,"▼",null,"級地区分表参照"]
[]
[null,"令和元年度の営業日数",null,null,"／366日"]
[null,"令和元年度末時点の利用定員",null,null,"名"]
[null,"令和元年度中の延べ利用者数",null,null,"名"]
[null,"令和元年度末時点の登録者数（実人数）",null,null,"人"]
[null,"利用率",null,{"$f":"IFERROR(+D16/(D15*D14)*100,0)","v":{"v":0,"d":"0.0"}},"％"]
[]
[]
[]
[null,"《サービスの経営状態と新型コロナウイルス感染症が与える影響について》"]
[]
[]
[]
[]
[]
[]
[null,"①令和２年４月～６月、令和元年４月～６月のそれぞれの月ごとの「サービス活動増減差額」を教えてください。"]
[null,null,"※マイナスの場合、「- ○,○○○」 と記入してください。"]
[]
[{"$nulls":3},"令和２年",null,"令和元年",null,"前年差額"]
[null,null," ４月",null,"円",null,"円",{"$f":"+D33-F33","v":{"v":0,"d":"0 "}}]
[null,null," ５月",null,"円",null,"円",{"$f":"+D34-F34","v":{"v":0,"d":"0 "}}]
[null,null," ６月",null,"円",null,"円",{"v":0,"d":"0 "}]
[]
[]
[]
[]
[null,null,"【令和２年４月のサービス活動増減差額が前年同月比で「減少」している場合】"]
[null,null,"その変化の主な要因は、新型コロナウイルス感染症によるものですか？"]
[]
[null,null," はい"]
[null,null,"（主な理由を次から選択 最大３つ）",{"$nulls":17},{"$f":"COUNTIF(U45:U53,TRUE)","v":0}]
[null,null,"　 紹介・相談・見学件数の減少、営業を控えたこと等により、利用率が減少または新規入所が減少したため"]
[null,null,"　 行政からの休業要請に応じたため"]
[null,null,"　 併設する本体施設の利用者への感染拡大を防止する観点から営業を縮小または停止したため"]
[null,null,"　 上記の理由以外で自主的な判断に基づき、縮小または休業を行ったため"]
[null,null,"　 人件費または採用に要する費用が増加したため"]
[null,null,"　 （残業代増、業務量増加にともなう派遣職員の配置等に係る支出増、"]
[null,null,"　 　コロナを理由とした離職にともなう採用活動を実施に係る費用増など）"]
[null,null,"　 衛生用品・防護用品の確保および感染予防のための設備費用等にともなう支出増"]
[null,null,"　 その他"]
[null,null," いいえ"]
[]
[]
[]
[null,null,"【令和２年５月のサービス活動増減差額が前年同月比で「減少」している場合】"]
[null,null,"その変化の主な要因は、新型コロナウイルス感染症によるものですか？"]
[]
[null,null," はい"]
[null,null,"（主な理由を次から選択 最大３つ）",{"$nulls":17},{"$f":"COUNTIF(U63:U71,TRUE)","v":0}]
[null,null,"　 紹介・相談・見学件数の減少、営業を控えたこと等により、利用率が減少または新規入所が減少したため"]
[null,null,"　 行政からの休業要請に応じたため"]
[null,null,"　 併設する本体施設の利用者への感染拡大を防止する観点から営業を縮小または停止したため"]
[null,null,"　 上記の理由以外で自主的な判断に基づき、縮小または休業を行ったため"]
[null,null,"　 人件費または採用に要する費用が増加したため"]
[null,null,"　 （残業代増、業務量増加にともなう派遣職員の配置等に係る支出増、"]
[null,null,"　 　コロナを理由とした離職にともなう採用活動を実施に係る費用増など）"]
[null,null,"　 衛生用品・防護用品の確保および感染予防のための設備費用等にともなう支出増"]
[null,null,"　 その他"]
[null,null," いいえ"]
[]
[]
[]
[null,null,"【令和２年６月のサービス活動増減差額が前年同月比で「減少」している場合】"]
[null,null,"その変化の主な要因は、新型コロナウイルス感染症によるものですか？"]
[]
[null,null," はい"]
[null,null,"（主な理由を次から選択 最大３つ）",{"$nulls":17},{"$f":"COUNTIF(U81:U89,TRUE)","v":0}]
[null,null,"　 紹介・相談・見学件数の減少、営業を控えたこと等により、利用率が減少または新規入所が減少したため"]
[null,null,"　 行政からの休業要請に応じたため"]
[null,null,"　 併設する本体施設の利用者への感染拡大を防止する観点から営業を縮小または停止したため"]
[null,null,"　 上記の理由以外で自主的な判断に基づき、縮小または休業を行ったため"]
[null,null,"　 人件費または採用に要する費用が増加したため"]
[null,null,"　 （残業代増、業務量増加にともなう派遣職員の配置等に係る支出増、"]
[null,null,"　 　コロナを理由とした離職にともなう採用活動を実施に係る費用増など）"]
[null,null,"　 衛生用品・防護用品の確保および感染予防のための設備費用等にともなう支出増"]
[null,null,"　 その他"]
[null,null," いいえ"]
{"$rows_empty":12}
[null,"②利用率の状況について教えてください。"]
{"$rows_empty":17}
[null,"・令和２年４月～６月、令和元年４月～６月のそれぞれの月ごとの「利用率」を教えてください。"]
[]
[null,null,"【令和元年度】",null,"※自費でサービスを利用する人、要介護認定申請中の人も含める"]
[{"$nulls":3},"延べ利用者数",null,"定員",null,"営業日数",null,"利用率"]
[null,null," ４月",null,"人",null,"人",null,"日",{"$f":"IFERROR(D125/(F125*H125),0)","v":{"v":0,"d":"0.0%"}}]
[null,null," ５月",null,"人",null,"人",null,"日",{"$f":"IFERROR(D126/(F126*H126),0)","v":{"v":0,"d":"0.0%"}}]
[null,null," ６月",null,"人",null,"人",null,"日",{"$f":"IFERROR(D127/(F127*H127),0)","v":{"v":0,"d":"0.0%"}}]
[]
[null,null,"【令和２年度】",null,"※自費でサービスを利用する人、要介護認定申請中の人も含める"]
[{"$nulls":3},"延べ利用者数",null,"定員",null,"営業日数",null,"利用率",null,"前年同月比"]
[null,null," ４月",null,"人",null,"人",null,"日",{"$f":"IFERROR(D131/(F131*H131),0)","v":{"v":0,"d":"0.0%"}},null,{"$f":"(J131-J125)*100","v":{"v":0,"d":"0.0"}}]
[null,null," ５月",null,"人",null,"人",null,"日",{"$f":"IFERROR(D132/(F132*H132),0)","v":{"v":0,"d":"0.0%"}},null,{"$f":"(J132-J126)*100","v":{"v":0,"d":"0.0"}}]
[null,null," ６月",null,"人",null,"人",null,"日",{"$f":"IFERROR(D133/(F133*H133),0)","v":{"v":0,"d":"0.0%"}},null,{"v":0,"d":"0.0"}]
[]
[]
[]
[]
[]
[null,"③新型コロナウイルス感染症に係る介護サービス事業所の人員基準等の臨時的な取扱いについて（第12報）」（６月１日）において\n　 示された特例（２区分上位の報酬区分を算定）の適用状況等について教えてください。"]
[]
[null,null,"すべての利用者もしくは一部の利用者について適用している（過去に適用したも含む）"]
[{"$nulls":3},"適用にあたり障壁があった"]
[{"$nulls":5},"障壁の具体的な内容"]
[{"$nulls":3},"問題なく適用することができた"]
[null,null,"適用していない"]
[{"$nulls":3},"今後適用予定"]
[{"$nulls":5},"現時点で障壁を感じている場合、その具体的な内容"]
[{"$nulls":3},"適用を検討したが障壁があり、適用しないこととした"]
[{"$nulls":5},"障壁の具体的な内容"]
[{"$nulls":3},"適用を検討していない"]
[]
[]
[null,null,"参考：","https://www.mhlw.go.jp/content/000635979.pdf"]
[]
[]
[null,"④「新型コロナウイルス感染症に係る介護サービス事業所の人員基準等の臨時的な取扱いについて（第2報）」（2月24日）において\n　　示された特例（居宅の利用者に対する訪問によるサービス提供）の適用状況等について教えてください。"]
[]
[null,null,"すべての利用者もしくは一部の利用者について適用している（過去に適用したも含む）"]
[{"$nulls":3},"適用にあたり障壁があった"]
[{"$nulls":5},"障壁の具体的な内容"]
[{"$nulls":3},"問題なく適用することができた"]
[null,null,"適用していない"]
[{"$nulls":3},"今後適用予定"]
[{"$nulls":5},"現時点で障壁を感じている場合、その具体的な内容"]
[{"$nulls":3},"適用を検討したが障壁があり、適用しないこととした"]
[{"$nulls":5},"障壁の具体的な内容"]
[{"$nulls":3},"適用を検討していない"]
[]
[]
[null,null,"参考：","https://www.mhlw.go.jp/content/000601693.pdf"]
[]
[]
[null,"次期介護報酬改定に向けて、通所介護に関して改善すべきと考えられる事項等ございましたら、ご記入ください。"]

{"sheet":"認知症対応型通所介護","index":8,"n_rows":171,"n_cols":21,"rows_kept":171,"hidden":true,"merged":[[0,0,0,16],[1,0,1,16],[5,1,5,2],[5,3,5,12],[6,1,6,2],[8,1,10,2],[8,3,8,12],[9,3,9,12],[10,3,10,12],[12,1,12,2],[12,4,12,12],[14,1,14,2],[14,5,14,7],[16,1,16,2],[17,1,17,2],[18,1,18,2],[18,5,19,16],[19,1,19,2],[20,1,20,2],[30,3,30,4],[30,5,30,6],[30,7,30,8],[31,7,31,8],[32,7,32,8],[33,7,33,8],[41,2,41,12],[51,2,51,3],[51,4,51,12],[52,2,52,12],[59,2,59,12],[69,2,69,3],[69,4,69,12],[70,2,70,12],[77,2,77,12],[87,2,87,3],[87,4,87,12],[88,2,88,12],[121,3,121,4],[121,5,121,6],[121,7,121,8],[128,3,128,4],[128,5,128,6],[128,7,128,8],[136,1,136,16],[138,2,138,12],[140,6,140,12],[142,2,142,12],[144,6,144,12],[146,6,146,12],[150,3,150,9],[172,1,172,15]]}
[]
["【認知症対応型通所介護シート】"]
[]
[null,"《基本情報》"]
[]
[null,"事業所名"]
[null,"併設の状況",null,"　単独　　　　特養に併設　　　　その他施設に併設　　　　　共用型"]
[]
[null,"介護予防認知症対応型通所\n介護の一体的な実施",null,"同一の事業所において一体的に実施"]
[{"$nulls":3},"同一の事業所において一体的に実施していない（別の事業所で実施）"]
[{"$nulls":3},"そもそも介護予防認知症対応型通所介護は実施していない"]
[{"$nulls":4},"↓↓　※以降の住所を記入　↓↓"]
[null,"所在地"]
[]
[null,"級地区分",null,null,"▼","級地区分表参照"]
[]
[null,"令和元年度の営業日数",null,null,"／366日"]
[null,"令和元年度末時点の利用定員",null,null,"名"]
[null,"令和元年度中の延べ利用者数",null,null,"名","※介護予防認知症対応型通所介護も一体的に実施している場合、\n　　両事業を踏まえた定員・人数を記載"]
[null,"令和元年度末時点の登録者数（実人数）",null,null,"人"]
[null,"利用率",null,{"$f":"IFERROR(+D19/(D18*D17)*100,0)","v":{"v":0,"d":"0.0"}},"％"]
[]
[]
[]
[null,"《サービスの経営状態と新型コロナウイルス感染症が与える影響について》"]
[]
[null,"①令和２年４月～６月、令和元年４月～６月のそれぞれの月ごとの「サービス活動増減差額」を教えてください。"]
[null,null,"※マイナスの場合、「- ○,○○○」 と記入してください。"]
[null,null,"※介護予防認知症対応型通所介護を一体的に実施している場合、両事業を踏まえた金額を記入してください。"]
[]
[{"$nulls":3},"令和２年",null,"令和元年",null,"前年差額"]
[null,null," ４月",null,"円",null,"円",{"$f":"+D32-F32","v":{"v":0,"d":"0 "}}]
[null,null," ５月",null,"円",null,"円",{"$f":"+D33-F33","v":{"v":0,"d":"0 "}}]
[null,null," ６月",null,"円",null,"円",{"v":0,"d":"0 "}]
[]
[]
[]
[]
[null,null,"【令和２年４月のサービス活動増減差額が前年同月比で「減少」している場合】"]
[null,null,"その変化の主な要因は、新型コロナウイルス感染症によるものですか？"]
[]
[null,null," はい"]
[null,null,"（主な理由を次から選択 最大３つ）",{"$nulls":17},{"$f":"COUNTIF(U44:U52,TRUE)","v":0}]
[null,null,"　 紹介・相談・見学件数の減少、営業を控えたこと等により、利用率が減少または新規入所が減少したため"]
[null,null,"　 行政からの休業要請に応じたため"]
[null,null,"　 併設する本体施設の利用者への感染拡大を防止する観点から営業を縮小または停止したため"]
[null,null,"　 上記の理由以外で自主的な判断に基づき、縮小または休業を行ったため"]
[null,null,"　 人件費または採用に要する費用が増加したため"]
[null,null,"　 （残業代増、業務量増加にともなう派遣職員の配置等に係る支出増、"]
[null,null,"　 　コロナを理由とした離職にともなう採用活動を実施に係る費用増など）"]
[null,null,"　 衛生用品・防護用品の確保および感染予防のための設備費用等にともなう支出増"]
[null,null,"　 その他"]
[null,null," いいえ"]
[]
[]
[]
[null,null,"【令和２年５月のサービス活動増減差額が前年同月比で「減少」している場合】"]
[null,null,"その変化の主な要因は、新型コロナウイルス感染症によるものですか？"]
[]
[null,null," はい"]
[null,null,"（主な理由を次から選択 最大３つ）",{"$nulls":17},{"$f":"COUNTIF(U62:U70,TRUE)","v":0}]
[null,null,"　 紹介・相談・見学件数の減少、営業を控えたこと等により、利用率が減少または新規入所が減少したため"]
[null,null,"　 行政からの休業要請に応じたため"]
[null,null,"　 併設する本体施設の利用者への感染拡大を防止する観点から営業を縮小または停止したため"]
[null,null,"　 上記の理由以外で自主的な判断に基づき、縮小または休業を行ったため"]
[null,null,"　 人件費または採用に要する費用が増加したため"]
[null,null,"　 （残業代増、業務量増加にともなう派遣職員の配置等に係る支出増、"]
[null,null,"　 　コロナを理由とした離職にともなう採用活動を実施に係る費用増など）"]
[null,null,"　 衛生用品・防護用品の確保および感染予防のための設備費用等にともなう支出増"]
[null,null,"　 その他"]
[null,null," いいえ"]
[]
[]
[]
[null,null,"【令和２年６月のサービス活動増減差額が前年同月比で「減少」している場合】"]
[null,null,"その変化の主な要因は、新型コロナウイルス感染症によるものですか？"]
[]
[null,null," はい"]
[null,null,"（主な理由を次から選択 最大３つ）",{"$nulls":17},{"$f":"COUNTIF(U80:U88,TRUE)","v":0}]
[null,null,"　 紹介・相談・見学件数の減少、営業を控えたこと等により、利用率が減少または新規入所が減少したため"]
[null,null,"　 行政からの休業要請に応じたため"]
[null,null,"　 併設する本体施設の利用者への感染拡大を防止する観点から営業を縮小または停止したため"]
[null,null,"　 上記の理由以外で自主的な判断に基づき、縮小または休業を行ったため"]
[null,null,"　 人件費または採用に要する費用が増加したため"]
[null,null,"　 （残業代増、業務量増加にともなう派遣職員の配置等に係る支出増、"]
[null,null,"　 　コロナを理由とした離職にともなう採用活動を実施に係る費用増など）"]
[null,null,"　 衛生用品・防護用品の確保および感染予防のための設備費用等にともなう支出増"]
[null,null,"　 その他"]
[null,null," いいえ"]
{"$rows_empty":12}
[null,"②利用率の状況について教えてください。"]
{"$rows_empty":15}
[null,"・令和２年４月～６月、令和元年４月～６月のそれぞれの月ごとの「利用率」を教えてください。"]
[]
[{"$nulls":4},"※自費でサービスを利用する人、要介護認定申請中の人も含める"]
[null,null,"【令和元年度】",null,"※介護予防認知症対応型通所介護も一体的実施している場合、両事業を踏まえた定員・人数を記載"]
[{"$nulls":3},"延べ利用者数",null,"定員",null,"営業日数",null,"利用率"]
[null,null," ４月",null,"人",null,"人",null,"日",{"$f":"IFERROR(D123/(F123*H123),0)","v":{"v":0,"d":"0.0%"}}]
[null,null," ５月",null,"人",null,"人",null,"日",{"$f":"IFERROR(D124/(F124*H124),0)","v":{"v":0,"d":"0.0%"}}]
[null,null," ６月",null,"人",null,"人",null,"日",{"$f":"IFERROR(D125/(F125*H125),0)","v":{"v":0,"d":"0.0%"}}]
[]
[{"$nulls":4},"※自費でサービスを利用する人、要介護認定申請中の人も含める"]
[null,null,"【令和２年度】",null,"※介護予防認知症対応型通所介護も一体的実施している場合、両事業を踏まえた定員・人数を記載"]
[{"$nulls":3},"延べ利用者数",null,"定員",null,"営業日数",null,"利用率",null,"前年同月比"]
[null,null," ４月",null,"人",null,"人",null,"日",{"$f":"IFERROR(D130/(F130*H130),0)","v":{"v":0,"d":"0.0%"}},null,{"$f":"(J130-J123)*100","v":{"v":0,"d":"0.0"}}]
[null,null," ５月",null,"人",null,"人",null,"日",{"$f":"IFERROR(D131/(F131*H131),0)","v":{"v":0,"d":"0.0%"}},null,{"$f":"(J131-J124)*100","v":{"v":0,"d":"0.0"}}]
[null,null," ６月",null,"人",null,"人",null,"日",{"$f":"IFERROR(D132/(F132*H132),0)","v":{"v":0,"d":"0.0%"}},null,{"v":0,"d":"0.0"}]
[]
[]
[]
[]
[null,"③新型コロナウイルス感染症に係る介護サービス事業所の人員基準等の臨時的な取扱いについて（第12報）」（６月１日）において\n　 示された特例（２区分上位の報酬区分を算定）の適用状況等について教えてください。"]
[]
[null,null,"すべての利用者もしくは一部の利用者について適用している（過去に適用したも含む）"]
[{"$nulls":3},"適用にあたり障壁があった"]
[{"$nulls":5},"障壁の具体的な内容"]
[{"$nulls":3},"問題なく適用することができた"]
[null,null,"適用していない"]
[{"$nulls":3},"今後適用予定"]
[{"$nulls":5},"現時点で障壁を感じている場合、その具体的な内容"]
[{"$nulls":3},"適用を検討したが障壁があり、適用しないこととした"]
[{"$nulls":5},"障壁の具体的な内容"]
[{"$nulls":3},"適用を検討していない"]
[]
[]
[null,null,"参考：","https://www.mhlw.go.jp/content/000635979.pdf"]
{"$rows_empty":19}
[null,"次期介護報酬改定に向けて、認知症対応型通所介護に関して改善すべきと考えられる事項等ございましたら、ご記入ください。"]

{"sheet":"認知症対応型通所介護1","index":9,"n_rows":171,"n_cols":21,"rows_kept":171,"merged":[[0,0,0,16],[1,0,1,16],[5,1,5,2],[5,3,5,12],[6,1,6,2],[8,1,10,2],[8,3,8,12],[9,3,9,12],[10,3,10,12],[12,1,12,2],[12,4,12,12],[14,1,14,2],[14,5,14,7],[16,1,16,2],[17,1,17,2],[18,1,18,2],[18,5,19,16],[19,1,19,2],[20,1,20,2],[30,3,30,4],[30,5,30,6],[30,7,30,8],[31,7,31,8],[32,7,32,8],[33,7,33,8],[41,2,41,12],[51,2,51,3],[51,4,51,12],[52,2,52,12],[59,2,59,12],[69,2,69,3],[69,4,69,12],[70,2,70,12],[77,2,77,12],[87,2,87,3],[87,4,87,12],[88,2,88,12],[121,3,121,4],[121,5,121,6],[121,7,121,8],[128,3,128,4],[128,5,128,6],[128,7,128,8],[136,1,136,16],[138,2,138,12],[140,6,140,12],[142,2,142,12],[144,6,144,12],[146,6,146,12],[150,3,150,9],[172,1,172,15]]}
[]
["【認知症対応型通所介護シート】"]
[]
[null,"《基本情報》"]
[]
[null,"事業所名"]
[null,"併設の状況",null,"　単独　　　　特養に併設　　　　その他施設に併設　　　　　共用型"]
[]
[null,"介護予防認知症対応型通所\n介護の一体的な実施",null,"同一の事業所において一体的に実施"]
[{"$nulls":3},"同一の事業所において一体的に実施していない（別の事業所で実施）"]
[{"$nulls":3},"そもそも介護予防認知症対応型通所介護は実施していない"]
[{"$nulls":4},"↓↓　※以降の住所を記入　↓↓"]
[null,"所在地"]
[]
[null,"級地区分",null,null,"▼","級地区分表参照"]
[]
[null,"令和元年度の営業日数",null,null,"／366日"]
[null,"令和元年度末時点の利用定員",null,null,"名"]
[null,"令和元年度中の延べ利用者数",null,null,"名","※介護予防認知症対応型通所介護も一体的に実施している場合、\n　　両事業を踏まえた定員・人数を記載"]
[null,"令和元年度末時点の登録者数（実人数）",null,null,"人"]
[null,"利用率",null,{"$f":"IFERROR(+D19/(D18*D17)*100,0)","v":{"v":0,"d":"0.0"}},"％"]
[]
[]
[]
[null,"《サービスの経営状態と新型コロナウイルス感染症が与える影響について》"]
[]
[null,"①令和２年４月～６月、令和元年４月～６月のそれぞれの月ごとの「サービス活動増減差額」を教えてください。"]
[null,null,"※マイナスの場合、「- ○,○○○」 と記入してください。"]
[null,null,"※介護予防認知症対応型通所介護を一体的に実施している場合、両事業を踏まえた金額を記入してください。"]
[]
[{"$nulls":3},"令和２年",null,"令和元年",null,"前年差額"]
[null,null," ４月",null,"円",null,"円",{"$f":"+D32-F32","v":{"v":0,"d":"0 "}}]
[null,null," ５月",null,"円",null,"円",{"$f":"+D33-F33","v":{"v":0,"d":"0 "}}]
[null,null," ６月",null,"円",null,"円",{"v":0,"d":"0 "}]
[]
[]
[]
[]
[null,null,"【令和２年４月のサービス活動増減差額が前年同月比で「減少」している場合】"]
[null,null,"その変化の主な要因は、新型コロナウイルス感染症によるものですか？"]
[]
[null,null," はい"]
[null,null,"（主な理由を次から選択 最大３つ）",{"$nulls":17},{"$f":"COUNTIF(U44:U52,TRUE)","v":0}]
[null,null,"　 紹介・相談・見学件数の減少、営業を控えたこと等により、利用率が減少または新規入所が減少したため"]
[null,null,"　 行政からの休業要請に応じたため"]
[null,null,"　 併設する本体施設の利用者への感染拡大を防止する観点から営業を縮小または停止したため"]
[null,null,"　 上記の理由以外で自主的な判断に基づき、縮小または休業を行ったため"]
[null,null,"　 人件費または採用に要する費用が増加したため"]
[null,null,"　 （残業代増、業務量増加にともなう派遣職員の配置等に係る支出増、"]
[null,null,"　 　コロナを理由とした離職にともなう採用活動を実施に係る費用増など）"]
[null,null,"　 衛生用品・防護用品の確保および感染予防のための設備費用等にともなう支出増"]
[null,null,"　 その他"]
[null,null," いいえ"]
[]
[]
[]
[null,null,"【令和２年５月のサービス活動増減差額が前年同月比で「減少」している場合】"]
[null,null,"その変化の主な要因は、新型コロナウイルス感染症によるものですか？"]
[]
[null,null," はい"]
[null,null,"（主な理由を次から選択 最大３つ）",{"$nulls":17},{"$f":"COUNTIF(U62:U70,TRUE)","v":0}]
[null,null,"　 紹介・相談・見学件数の減少、営業を控えたこと等により、利用率が減少または新規入所が減少したため"]
[null,null,"　 行政からの休業要請に応じたため"]
[null,null,"　 併設する本体施設の利用者への感染拡大を防止する観点から営業を縮小または停止したため"]
[null,null,"　 上記の理由以外で自主的な判断に基づき、縮小または休業を行ったため"]
[null,null,"　 人件費または採用に要する費用が増加したため"]
[null,null,"　 （残業代増、業務量増加にともなう派遣職員の配置等に係る支出増、"]
[null,null,"　 　コロナを理由とした離職にともなう採用活動を実施に係る費用増など）"]
[null,null,"　 衛生用品・防護用品の確保および感染予防のための設備費用等にともなう支出増"]
[null,null,"　 その他"]
[null,null," いいえ"]
[]
[]
[]
[null,null,"【令和２年６月のサービス活動増減差額が前年同月比で「減少」している場合】"]
[null,null,"その変化の主な要因は、新型コロナウイルス感染症によるものですか？"]
[]
[null,null," はい"]
[null,null,"（主な理由を次から選択 最大３つ）",{"$nulls":17},{"$f":"COUNTIF(U80:U88,TRUE)","v":0}]
[null,null,"　 紹介・相談・見学件数の減少、営業を控えたこと等により、利用率が減少または新規入所が減少したため"]
[null,null,"　 行政からの休業要請に応じたため"]
[null,null,"　 併設する本体施設の利用者への感染拡大を防止する観点から営業を縮小または停止したため"]
[null,null,"　 上記の理由以外で自主的な判断に基づき、縮小または休業を行ったため"]
[null,null,"　 人件費または採用に要する費用が増加したため"]
[null,null,"　 （残業代増、業務量増加にともなう派遣職員の配置等に係る支出増、"]
[null,null,"　 　コロナを理由とした離職にともなう採用活動を実施に係る費用増など）"]
[null,null,"　 衛生用品・防護用品の確保および感染予防のための設備費用等にともなう支出増"]
[null,null,"　 その他"]
[null,null," いいえ"]
{"$rows_empty":12}
[null,"②利用率の状況について教えてください。"]
{"$rows_empty":15}
[null,"・令和２年４月～６月、令和元年４月～６月のそれぞれの月ごとの「利用率」を教えてください。"]
[]
[{"$nulls":4},"※自費でサービスを利用する人、要介護認定申請中の人も含める"]
[null,null,"【令和元年度】",null,"※介護予防認知症対応型通所介護も一体的実施している場合、両事業を踏まえた定員・人数を記載"]
[{"$nulls":3},"延べ利用者数",null,"定員",null,"営業日数",null,"利用率"]
[null,null," ４月",null,"人",null,"人",null,"日",{"$f":"IFERROR(D123/(F123*H123),0)","v":{"v":0,"d":"0.0%"}}]
[null,null," ５月",null,"人",null,"人",null,"日",{"$f":"IFERROR(D124/(F124*H124),0)","v":{"v":0,"d":"0.0%"}}]
[null,null," ６月",null,"人",null,"人",null,"日",{"$f":"IFERROR(D125/(F125*H125),0)","v":{"v":0,"d":"0.0%"}}]
[]
[{"$nulls":4},"※自費でサービスを利用する人、要介護認定申請中の人も含める"]
[null,null,"【令和２年度】",null,"※介護予防認知症対応型通所介護も一体的実施している場合、両事業を踏まえた定員・人数を記載"]
[{"$nulls":3},"延べ利用者数",null,"定員",null,"営業日数",null,"利用率",null,"前年同月比"]
[null,null," ４月",null,"人",null,"人",null,"日",{"$f":"IFERROR(D130/(F130*H130),0)","v":{"v":0,"d":"0.0%"}},null,{"$f":"(J130-J123)*100","v":{"v":0,"d":"0.0"}}]
[null,null," ５月",null,"人",null,"人",null,"日",{"$f":"IFERROR(D131/(F131*H131),0)","v":{"v":0,"d":"0.0%"}},null,{"$f":"(J131-J124)*100","v":{"v":0,"d":"0.0"}}]
[null,null," ６月",null,"人",null,"人",null,"日",{"$f":"IFERROR(D132/(F132*H132),0)","v":{"v":0,"d":"0.0%"}},null,{"v":0,"d":"0.0"}]
[]
[]
[]
[]
[null,"③新型コロナウイルス感染症に係る介護サービス事業所の人員基準等の臨時的な取扱いについて（第12報）」（６月１日）において\n　 示された特例（２区分上位の報酬区分を算定）の適用状況等について教えてください。"]
[]
[null,null,"すべての利用者もしくは一部の利用者について適用している（過去に適用したも含む）"]
[{"$nulls":3},"適用にあたり障壁があった"]
[{"$nulls":5},"障壁の具体的な内容"]
[{"$nulls":3},"問題なく適用することができた"]
[null,null,"適用していない"]
[{"$nulls":3},"今後適用予定"]
[{"$nulls":5},"現時点で障壁を感じている場合、その具体的な内容"]
[{"$nulls":3},"適用を検討したが障壁があり、適用しないこととした"]
[{"$nulls":5},"障壁の具体的な内容"]
[{"$nulls":3},"適用を検討していない"]
[]
[]
[null,null,"参考：","https://www.mhlw.go.jp/content/000635979.pdf"]
{"$rows_empty":19}
[null,"次期介護報酬改定に向けて、認知症対応型通所介護に関して改善すべきと考えられる事項等ございましたら、ご記入ください。"]

{"sheet":"【参考】級地区分表","index":10,"n_rows":0,"n_cols":0,"rows_kept":0}